{"text_format":"1","workbook":"xlsx","n_sheets":18,"sheets":["Instructions","INFO","UPLOAD","W1","W2","W3","W4","W5","W6","W7","W8","W9","W10","SUBMIT REPORT","SUMMARY","Payout Calc","Memberships","SupportData"],"not_rendered":{"charts":0,"images":2,"macros":1,"external_links":2,"defined_names":79,"comments":2,"pivot_tables":0},"unopened":[],"bounds":{"document_bytes":16777216,"sheet_cells":100000,"rows_first":2000,"rows_last":500,"rows_between":2000,"halvings":0,"cell_chars":16384,"cell_head_chars":4096},"cells_cut":0,"cells_raw":0,"read":"whole","date_system":"1900"}

{"sheet":"Instructions","index":0,"n_rows":61,"n_cols":17,"rows_kept":61,"cut":false,"hidden":false,"merged":[[15,1,15,2],[3,4,3,14],[4,12,4,14],[4,15,4,17]]}
[]
[null,null,"Guide to the PDGA League Report"]
[null,null,"Excel Version 18.4b"]
[null,null,"Dear PDGA League Director,",null,"  Division Codes: Use the following 3 or 4 character codes in the DivCode field."]
[null,null,null,null,"PROFESSIONAL DIVISIONS",null,null,null,"AMATEUR DIVISIONS",null,null,null,"RATINGS DIVISIONS",null,null,"JUNIOR DIVISIONS"]
[null,null,"Thanks for directing a PDGA League! This version of the League Report has been updated to MS Excel 2007+",null,"MPO","Open",null,null,"MA1","Advanced",null,null,"Code","Color","Rating","MJ18","Junior Boys < 18"]
[null,null,"to provide wider compatibillity. TDs who do not have Excel* or are unable to report in this format are ",null,"MP40","Master Pro 40+",null,null,"MA2","Intermediate",null,null,"RPA","Gold","970+","MJ15","Junior Boys < 15"]
[null,null,"requested to forward this file and assign the task of reporting to a local club member or event volunteer who ",null,"MP50","Master Pro 50+",null,null,"MA3","Recreational",null,null,"RAH","Blue","<970","MJ12","Junior Boys < 12"]
[null,null,"has the appropriate computer capabilities. All reports must be submitted using this League spreadsheet.",null,"MP55","Master Pro 55+",null,null,"MA4","Novice",null,null,"RAD","White","<935","MJ10","Junior Boys < 10"]
[null,null,null,null,"MP60","Master Pro 60+",null,null,"FA1","Advanced Women",null,null,"RAE","Red","<900","MJ08","Junior Boys < 8"]
[null,null,"Note: Buttons with automated functions have been provided to simplify some tasks. You may need to change your",null,"MP65","Master Pro 65+",null,null,"FA2","Intermediate Women",null,null,"RAF","Green","<850","MJ06","Junior Boys < 6"]
[null,null,"Macro security settings in Excel for the buttons to work. The macro buttons in this Excel template do not work if",null,"MP70","Master Pro 70+",null,null,"FA3","Recreational Women",null,null,"RAG","Purple","<800","FJ18","Junior Girls < 18"]
[null,null,"opened in the Open Office Calc program. However, this league report template is now available for Open Office",null,"MP75","Master Pro 75+",null,null,"FA4","Novice Women",null,null,null,null,null,"FJ15","Junior Girls < 15"]
[null,null,"with the same buttons that work. Open Office can be downloaded from this website:  www.openoffice.org  ",null,"MP80","Master Pro 80+",null,null,"MA40","Master Amateur 40+",null,null,"FA40","Women Master Am 40+",null,"FJ12","Junior Girls < 12"]
[null,null,null,null,"FPO","Open Women",null,null,"MA50","Master Amateur 50+",null,null,"FA50","Women Master Am 50+",null,"FJ10","Junior Girls < 10"]
[null,"These worksheets are accessed by clicking on the tabs at the bottom of the spreadsheet. All pages with Red and Orange tabs must be filled in where appropriate. The Black tabs are optional for League tracking, payouts and memberships.",null,null,"FP40","Women Master Pro 40+",null,null,"MA55","Master Amateur 55+",null,null,"FA55","Women Master Am 55+",null,"FJ08","Junior Girls < 8"]
[null,null,null,null,"FP50","Women Master Pro 50+",null,null,"MA60","Master Amateur 60+",null,null,"FA60","Women Master Am 60+",null,"FJ06","Junior Girls < 6"]
[null,"INFO","Enter basic League info. You may only enter info in yellow cells throughout this spreadsheet. All green cells include",null,"FP55","Women Master Pro 55+",null,null,"MA65","Master Amateur 65+",null,null,"FA65","Women Master Am 65+"]
[null,"   (Required)","formulas and  are usually protected by password from being changed by the TD. Enter info on the courses you plan",null,"FP60","Women Master Pro 60+",null,null,"MA70","Master Amateur 70+",null,null,"FA70","Women Master Am 70+"]
[null,null,"to play each week. You can change this information at any time before submitting your report.",null,"FP65","Women Master Pro 65+"]
[null,null,null,null,"FP70","Women Master Pro 70+"]
[null,"UPLOAD","This page is where the master list of your players resides and where all new players each week must be added."]
[null,"   (Required)","Your weekly scores will automatically end up on this page which you use to upload scores each week to the PDGA "]
[null,null,"web site. More detailed instructions are listed on the right side of the UPLOAD page. Note: If you are running a single"]
[null,null,"division handicap league, you must indicate ams and pros separately each week in MA1 and MPO, respectively,"]
[null,null,"so each group will earn PDGA points in their am or pro category."]
[]
[null,"W1, W2…","There are 10 pages, one for each week starting with W1. Once you have updated your UPLOAD page with your"]
[null,"   (Required)","new players each week, click the pink arrow on the W# page to automatically get your master player list added to"]
[null,null,"the page. The only information that must be added to each W# page is the raw score each player threw each week."]
[null,null,"Columns F thru I are for League Directors to modify and use as needed based on the format of their league."]
[]
[null,"SUBMIT","Provides a checklist to help league directors make sure they’ve done the steps needed to complete this form prior"]
[null,"REPORT","to submission to the PDGA. Fees are automatically calculated each week. \"Sign\" the form before sending it in."]
[null,"   (Required)"]
[]
[]
[]
[null,"Summary","This page can be modified as required by the League Director to do the calculations for tracking weekly results and"]
[null,"   (Optional)","payouts based on how the league will be run, i.e. points, so many best scores, handicaps, etc."]
[]
[null,"Payout Calc","This payout calculator is provided as an aid for the TDs if needed. Full payout tables are available on the PDGA"]
[null,"   (Optional)","site if desired at: http://www.pdga.com/documents/tour-pay-tables"]
[]
[null,"Memberships","New Memberships and Renewals must be done by player visiting PDGA site. See link on Memberships tab."]
[null,"   (Optional)"]
[]
[]
[null,"Remember"]
[null,"- The expectations and requirements of Tour events including leagues are described in the Sanctioning Agreement/Tour Standards"]
[null,"- Please alert us if your mailing or email address has recently changed"]
[]
[null,"Report Submission"]
[null,"Once this Tour Event Report is completed please return it as an email attachment to tdreport@pdga.com TDs can either mail the Player and Membership Fees"]
[null,"collected to the PDGA office at: PDGA, Wildwood Park, 3841 Dogwood Lane, Appling, GA 30802-3004  or pay using PayPal at: www.pdga.com/tdpayment "]
[]
[null,"Leagues must submit any fees due within 30 day after the last league day."]
[]
[null,"Questions ? ","Contact the PDGA Office at (706) 261-6342 or use email below. Thanks and good luck on Tour !"]
[null,null,"tdreport@pdga.com"]
[null,"PDGA doc: ldr2018"]

{"sheet":"INFO","index":1,"n_rows":24,"n_cols":23,"rows_kept":24,"cut":false,"hidden":false,"merged":[[18,16,18,18],[0,18,0,20],[0,2,0,6],[1,18,1,20],[1,2,1,5],[1,8,1,10],[11,16,11,18],[12,16,12,18],[2,8,2,16],[2,2,2,5],[9,10,9,14],[9,16,9,18],[10,16,10,18],[3,2,3,5],[4,6,4,20],[6,0,6,5],[26,0,26,20],[27,0,27,20],[19,16,19,18],[20,16,20,18],[24,0,24,20],[25,0,25,20],[22,0,22,5],[20,22,20,24],[14,16,14,18],[10,22,10,24],[11,22,11,24],[12,22,12,24],[13,22,13,24],[14,22,14,24],[15,22,15,24],[16,22,16,24],[17,22,17,24],[18,22,18,24],[19,22,19,24],[17,16,17,18],[13,16,13,18],[15,16,15,18],[16,16,16,18]]}
[null,"League Name: ",null,null,null,null,null,"12.0.0",null,null,null,null,null,null,null,null,null,"# of Weeks: "]
[null,"League TD: ",null,null,null,null,null,"League Director PDGA # ",null,null,null,null,null,null,null,null,null,"Starting Date: "]
[null,"Main City: ",null,null,null,null,null,"Email Address: ","@"]
[null,"State / Prv: "]
[null,null,null,null,null,"Optional - How do $ amounts in your entry fee break out: "]
[]
["COURSES & LAYOUTS",null,null,null,null,null,null,null,"Link to PDGA Course Directory >",null,"http://www.pdga.com/course_directory"]
["It is important to enter course layout information accurately so your players get their ratings processed correctly."]
[null,null,null,null,null,null,null,"Please remove any apostrophes in course names even if it's that way in the directory!"]
["Week or",null,null,null,null,null,null,null,"Same",null,"Number of Holes",null,null,null,null,null,"Length",null,null,null,"Meas."]
["Round","Date","Day",null,"Park or Course Name",null," Specific Layout / Configuration Name",null,"Layout?",null,"Perm",null,"Temp",null,"TOT",null,"(feet)",null,null,null,"or Est?",null,"NOTE"]
[1,null,{"$f":"IF(B12=\"\",\"\",TEXT(WEEKDAY(B12),\"ddd\"))","v":""},null,null,null,null,null,"na",null,null,null,null,null,{"$f":"IF(OR(K12>0,M12>0),K12+M12,\"\")","v":""},null,null,null,null,null,null,null,"Type only in"]
[2,null,{"$f":"IF(B13=\"\",\"\",TEXT(WEEKDAY(B13),\"ddd\"))","v":""},null,null,null,null,null,null,null,null,null,null,null,"",null,null,null,null,null,null,null,"yellow boxes"]
[3,null,"",null,null,null,null,null,null,null,null,null,null,null,"",null,null,null,null,null,null,null,"DO NOT TYPE IN"]
[4,null,"",null,null,null,null,null,null,null,null,null,null,null,"",null,null,null,null,null,null,null,"GREEN BOXES!"]
[5,null,"",null,null,null,null,null,null,null,null,null,null,null,"",null,null,null,null,null,null,null,"These all use"]
[6,null,"",null,null,null,null,null,null,null,null,null,null,null,"",null,null,null,null,null,null,null,"automatic entries"]
[7,null,"",null,null,null,null,null,null,null,null,null,null,null,{"$f":"IF(OR(K18>0,M18>0),K18+M18,\"\")","v":""},null,null,null,null,null,null,null,"Do not insert or"]
[8,null,"",null,null,null,null,null,null,null,null,null,null,null,{"$f":"IF(OR(K19>0,M19>0),K19+M19,\"\")","v":""},null,null,null,null,null,null,null,"delete rows. All "]
[9,null,"",null,null,null,null,null,null,null,null,null,null,null,{"$f":"IF(OR(K20>0,M20>0),K20+M20,\"\")","v":""},null,null,null,null,null,null,null,"cells are postitioned"]
[10,null,"",null,null,null,null,null,null,null,null,null,null,null,{"$f":"IF(OR(K21>0,M21>0),K21+M21,\"\")","v":""},null,null,null,null,null,null,null,"for data importing"]
[]
["WEATHER & UNUSUAL CONDITIONS"]
["Describe any extraordinary weather or other unusual conditions that may have affected scoring, and indicate which rounds were affected."]

{"sheet":"UPLOAD","index":2,"n_rows":325,"n_cols":22,"rows_kept":325,"cut":false,"hidden":false,"merged":[[0,11,0,15],[0,0,0,2],[3,19,3,20],[62,19,62,21],[48,19,48,21],[40,19,40,20],[2,0,3,1],[14,19,14,22]]}
["LEAGUE UPLOAD PAGE",null,null,"  (Scroll to right for Instructions)",null,null,null,null,null,null,"League Name: ",{"$f":"IF(INFO!C1=\"\",\"\",INFO!C1)","v":""},null,null,null,null,null,null,null,"PDGA Upload site:",null,"http://www.pdga.com/tournament/manager"]
[]
[" Click here to see\n Division Codes",null,null,null,{"$f":"IF(E4<>'W1'!$E3,\"ERR!\",\"\")","v":""},{"$f":"IF(F4<>'W2'!$E3,\"ERR!\",\"\")","v":""},{"$f":"IF(G4<>'W3'!$E3,\"ERR!\",\"\")","v":""},{"$f":"IF(H4<>'W4'!$E3,\"ERR!\",\"\")","v":""},{"$f":"IF(I4<>'W5'!$E3,\"ERR!\",\"\")","v":""},{"$f":"IF(J4<>'W6'!$E3,\"ERR!\",\"\")","v":""},{"$f":"IF(K4<>'W7'!$E3,\"ERR!\",\"\")","v":""},{"$f":"IF(L4<>'W8'!$E3,\"ERR!\",\"\")","v":""},{"$f":"IF(M4<>'W9'!$E3,\"ERR!\",\"\")","v":""},{"$f":"IF(N4<>'W10'!$E3,\"ERR!\",\"\")","v":""}]
[null,null,null,"# Played > ",{"$f":"COUNTIF(E6:E325,\">0\")","v":0},{"$f":"COUNTIF(F6:F325,\">0\")","v":0},0,0,0,0,0,0,0,0,"Play",null,null,null,null,"INSTRUCTIONS"]
["DivCode","First","Last","PDGA #","R1","R2","R3","R4","R5","R6","R7","R8","R9","R10","This Wk?","PDGA #    or Code","Dupes\n?",null,null,"This Upload page is the master list of all players who entered your league and their"]
[null,null,null,{"$f":"IF(P6=\"\",\"\",IF(ISERR(VALUE(P6)),\"\",P6))","v":""},{"$f":"IF(OR(ISERROR(VLOOKUP($P6,W1D,1,FALSE)),ISBLANK(VLOOKUP($P6,W1D,2,FALSE))),\"\",VLOOKUP($P6,W1D,2,FALSE))","v":""},{"$f":"IF(OR(ISERROR(VLOOKUP($P6,W2D,1,FALSE)),ISBLANK(VLOOKUP($P6,W2D,2,FALSE))),\"\",VLOOKUP($P6,W2D,2,FALSE))","v":""},{"$f":"IF(OR(ISERROR(VLOOKUP($P6,W3D,1,FALSE)),ISBLANK(VLOOKUP($P6,W3D,2,FALSE))),\"\",VLOOKUP($P6,W3D,2,FALSE))","v":""},{"$f":"IF(OR(ISERROR(VLOOKUP($P6,W4D,1,FALSE)),ISBLANK(VLOOKUP($P6,W4D,2,FALSE))),\"\",VLOOKUP($P6,W4D,2,FALSE))","v":""},{"$f":"IF(OR(ISERROR(VLOOKUP($P6,W5D,1,FALSE)),ISBLANK(VLOOKUP($P6,W5D,2,FALSE))),\"\",VLOOKUP($P6,W5D,2,FALSE))","v":""},{"$f":"IF(OR(ISERROR(VLOOKUP($P6,W6D,1,FALSE)),ISBLANK(VLOOKUP($P6,W6D,2,FALSE))),\"\",VLOOKUP($P6,W6D,2,FALSE))","v":""},{"$f":"IF(OR(ISERROR(VLOOKUP($P6,W7D,1,FALSE)),ISBLANK(VLOOKUP($P6,W7D,2,FALSE))),\"\",VLOOKUP($P6,W7D,2,FALSE))","v":""},{"$f":"IF(OR(ISERROR(VLOOKUP($P6,W8D,1,FALSE)),ISBLANK(VLOOKUP($P6,W8D,2,FALSE))),\"\",VLOOKUP($P6,W8D,2,FALSE))","v":""},{"$f":"IF(OR(ISERROR(VLOOKUP($P6,W9D,1,FALSE)),ISBLANK(VLOOKUP($P6,W9D,2,FALSE))),\"\",VLOOKUP($P6,W9D,2,FALSE))","v":""},{"$f":"IF(OR(ISERROR(VLOOKUP($P6,W10D,1,FALSE)),ISBLANK(VLOOKUP($P6,W10D,2,FALSE))),\"\",VLOOKUP($P6,W10D,2,FALSE))","v":""},null,null,{"$f":"IF(COUNTIF(P$6:P$325,P6)>1,\"<Dup!\",\"\")","v":""},null,null,"scores. You upload this page weekly to the PDGA website to generate Preview"]
[null,null,null,"","","","","","","","","","","",null,null,"",null,null,"(unofficial) Ratings online until the league is completed and this report is filed with PDGA."]
[null,null,null,"","","","","","","","","","","",null,null,"",null,null,"Enter the name of every player who plays in your league. Enter it even if they didn't"]
[null,null,null,"","","","","","","","","","","",null,null,"",null,null,"complete the one round (999) they started during the whole league. Only enter a"]
[null,null,null,"","","","","","","","","","","",null,null,"",null,null,"player's name once even if they played in more than one division during the league."]
[null,null,null,"","","","","","","","","","","",null,null,""]
[null,null,null,"","","","","","","","","","","",null,null,"",null,null,"Enter a DivCode for each player here but you can change it each week on the weekly"]
[null,null,null,"","","","","","","","","","","",null,null,"",null,null,"tab if they switch around. If you're running a handicap league with one division, suggest"]
[null,null,null,"","","","","","","","","","","",null,null,"",null,null,"upload Pros in MPO and Ams in MA1 so players earn pro or am PDGA points accordingly. "]
[null,null,null,"","","","","","","","","","","",null,null,"",null,null,">>> BUT everyone must have a DivCode entered."]
[null,null,null,"","","","","","","","","","","",null,null,"",null,null,"Every player must either have their PDGA number entered in Column P or a unique"]
[null,null,null,"","","","","","","","","","","",null,null,"",null,null,"code you create to keep track of players without a PDGA number. Your non-PDGA"]
[null,null,null,"","","","","","","","","","","",null,null,"",null,null,"codes MUST start with a letter like L for league. You could assign your first"]
[null,null,null,"","","","","","","","","","","",null,null,"",null,null,"non-PDGA member with the code L1, then the next would be L2, etc. Using their"]
[null,null,null,"","","","","","","","","","","",null,null,"",null,null,"initials is also fine. Then add a unique number to the end when players have"]
[null,null,null,"","","","","","","","","","","",null,null,"",null,null,"the same initials. Your club member ID codes are also fine as long as they start"]
[null,null,null,"","","","","","","","","","","",null,null,"",null,null,"with a letter or just add the letter C in front. But always use their PDGA number if"]
[null,null,null,"","","","","","","","","","","",null,null,"",null,null,"they have one so we can use their Player Ratings to help produce Preview Ratings."]
[null,null,null,"","","","","","","","","","","",null,null,""]
[null,null,null,"","","","","","","","","","","",null,null,"",null,null,"Non-members may join and get their new PDGA# during league. Replace their non-PDGA"]
[null,null,null,"","","","","","","","","","","",null,null,"",null,null,"code with their new PDGA # in column P on this page, plus column D on all W pages."]
[null,null,null,"","","","","","","","","","","",null,null,""]
[null,null,null,"","","","","","","","","","","",null,null,"",null,null,"The Dupes? Column Q will show if you entered the same Code or PDGA# already."]
[null,null,null,"","","","","","","","","","","",null,null,"",null,null,"Enter Y in Column O only if a player is playing this week. Then, when you go to the"]
[null,null,null,"","","","","","","","","","","",null,null,"",null,null,"weekly tab W1, W2, etc. and click on the pink arrow to Get Names, it will bring all of"]
[null,null,null,"","","","","","","","","","","",null,null,"",null,null,"your players for this week to the top of the list and in their divisions. The Division Sort"]
[null,null,null,"","","","","","","","","","","",null,null,"",null,null,"and Name Sort buttons can be clicked any time to see the player list that way."]
[null,null,null,"","","","","","","","","","","",null,null,""]
[null,null,null,"","","","","","","","","","","",null,null,"",null,null,"Once you fill out the scores for each player on the weekly tab, their scores will "]
[null,null,null,"","","","","","","","","","","",null,null,"",null,null,"automatically be copied to this page as long as their codes match on this page and"]
[null,null,null,"","","","","","","","","","","",null,null,"",null,null,"the weekly tab. If the number of player scores entered on the weekly tab matches"]
[null,null,null,"","","","","","","","","","","",null,null,"",null,null,"the number of scores shown above on row 3, you are ready to upload scores to"]
[null,null,null,"","","","","","","","","","","",null,null,"",null,null,"the PDGA website. If the player numbers do not match, you will see a red ERR! Code"]
[null,null,null,"","","","","","","","","","","",null,null,"",null,null,"in row 3 above the week with the problem. Jump to Troubleshooting Guide below."]
[null,null,null,"","","","","","","","","","","",null,null,""]
[null,null,null,"","","","","","","","","","","",null,null,"",null,null,"UPLOADING"]
[null,null,null,"","","","","","","","","","","",null,null,"",null,null,"Click on the link at the top of this column to access the PDGA site for your upload."]
[null,null,null,"","","","","","","","","","","",null,null,"",null,null,"Access your league page and click on the Upload option to open the window. Click"]
[null,null,null,"","","","","","","","","","","",null,null,"",null,null,"on the COPY for UPLOAD button at the top of this column and paste into the window."]
[null,null,null,"","","","","","","","","","","",null,null,"",null,null,"Add a course layout if needed and link it to the scores for this week/round so ratings"]
[null,null,null,"","","","","","","","","","","",null,null,"",null,null,"get processed properly. The website will sort players into lowest raw score totals in"]
[null,null,null,"","","","","","","","","","","",null,null,"",null,null,"each division (meaningless for leagues). Don't worry. Players will find their ratings."]
[null,null,null,"","","","","","","","","","","",null,null,""]
[null,null,null,"","","","","","","","","","","",null,null,"",null,null,"TROUBLESHOOTING"]
[null,null,null,"","","","","","","","","","","",null,null,"",null,null,"> If the # Played on this page is greater than the Number who Played on the Week"]
[null,null,null,"","","","","","","","","","","",null,null,"",null,null,"page, it probably means there's a duplicate PDGA # or Code in Column P. You will"]
[null,null,null,"","","","","","","","","","","",null,null,"",null,null,"likely see <Dup! somewhere in Column Q."]
[null,null,null,"","","","","","","","","","","",null,null,""]
[null,null,null,"","","","","","","","","","","",null,null,"",null,null,"> If the # Played on this page is smaller than the Number who Played on the Week"]
[null,null,null,"","","","","","","","","","","",null,null,"",null,null,"page, it probably means the names of one or more players who played that week have"]
[null,null,null,"","","","","","","","","","","",null,null,"",null,null,"not yet been added to this master list of all league players."]
[null,null,null,"","","","","","","","","","","",null,null,""]
[null,null,null,"","","","","","","","","","","",null,null,"",null,null,"> If it looks like a PDGA # or Code should be bringing a score over from another page"]
[null,null,null,"","","","","","","","","","","",null,null,"",null,null,"but the score isn't showing up, retype the PDGA # or Code on the weekly page and"]
[null,null,null,"","","","","","","","","","","",null,null,"",null,null,"possibly this page. Sometimes a blank you can't see accidentally gets typed in the "]
[null,null,null,"","","","","","","","","","","",null,null,"",null,null,"cell so they both look alike but don’t connect."]
[null,null,null,"","","","","","","","","","","",null,null,""]
[null,null,null,"","","","","","","","","","","",null,null,"",null,null,"OPEN OFFICE NOTES"]
[null,null,null,"","","","","","","","","","","",null,null,"",null,null,"Excel buttons triggering automated macros do not work in Open Office. "]
[null,null,null,"","","","","","","","","","","",null,null,"",null,null,"Please download Open Office version of this League report template where the buttons work."]
[null,null,null,"","","","","","","","","","","",null,null,""]
[null,null,null,"","","","","","","","","","","",null,null,""]
[null,null,null,"","","","","","","","","","","",null,null,""]
[null,null,null,"","","","","","","","","","","",null,null,""]
[null,null,null,{"$f":"IF(P70=\"\",\"\",IF(ISERR(VALUE(P70)),\"\",P70))","v":""},{"$f":"IF(OR(ISERROR(VLOOKUP($P70,W1D,1,FALSE)),ISBLANK(VLOOKUP($P70,W1D,2,FALSE))),\"\",VLOOKUP($P70,W1D,2,FALSE))","v":""},{"$f":"IF(OR(ISERROR(VLOOKUP($P70,W2D,1,FALSE)),ISBLANK(VLOOKUP($P70,W2D,2,FALSE))),\"\",VLOOKUP($P70,W2D,2,FALSE))","v":""},{"$f":"IF(OR(ISERROR(VLOOKUP($P70,W3D,1,FALSE)),ISBLANK(VLOOKUP($P70,W3D,2,FALSE))),\"\",VLOOKUP($P70,W3D,2,FALSE))","v":""},{"$f":"IF(OR(ISERROR(VLOOKUP($P70,W4D,1,FALSE)),ISBLANK(VLOOKUP($P70,W4D,2,FALSE))),\"\",VLOOKUP($P70,W4D,2,FALSE))","v":""},{"$f":"IF(OR(ISERROR(VLOOKUP($P70,W5D,1,FALSE)),ISBLANK(VLOOKUP($P70,W5D,2,FALSE))),\"\",VLOOKUP($P70,W5D,2,FALSE))","v":""},{"$f":"IF(OR(ISERROR(VLOOKUP($P70,W6D,1,FALSE)),ISBLANK(VLOOKUP($P70,W6D,2,FALSE))),\"\",VLOOKUP($P70,W6D,2,FALSE))","v":""},{"$f":"IF(OR(ISERROR(VLOOKUP($P70,W7D,1,FALSE)),ISBLANK(VLOOKUP($P70,W7D,2,FALSE))),\"\",VLOOKUP($P70,W7D,2,FALSE))","v":""},{"$f":"IF(OR(ISERROR(VLOOKUP($P70,W8D,1,FALSE)),ISBLANK(VLOOKUP($P70,W8D,2,FALSE))),\"\",VLOOKUP($P70,W8D,2,FALSE))","v":""},{"$f":"IF(OR(ISERROR(VLOOKUP($P70,W9D,1,FALSE)),ISBLANK(VLOOKUP($P70,W9D,2,FALSE))),\"\",VLOOKUP($P70,W9D,2,FALSE))","v":""},{"$f":"IF(OR(ISERROR(VLOOKUP($P70,W10D,1,FALSE)),ISBLANK(VLOOKUP($P70,W10D,2,FALSE))),\"\",VLOOKUP($P70,W10D,2,FALSE))","v":""},null,null,{"$f":"IF(COUNTIF(P$6:P$325,P70)>1,\"<Dup!\",\"\")","v":""}]
[null,null,null,"","","","","","","","","","","",null,null,""]
[null,null,null,"","","","","","","","","","","",null,null,""]
[null,null,null,"","","","","","","","","","","",null,null,""]
[null,null,null,"","","","","","","","","","","",null,null,""]
[null,null,null,"","","","","","","","","","","",null,null,""]
[null,null,null,"","","","","","","","","","","",null,null,""]
[null,null,null,"","","","","","","","","","","",null,null,""]
[null,null,null,"","","","","","","","","","","",null,null,""]
[null,null,null,"","","","","","","","","","","",null,null,""]
[null,null,null,"","","","","","","","","","","",null,null,""]
[null,null,null,"","","","","","","","","","","",null,null,""]
[null,null,null,"","","","","","","","","","","",null,null,""]
[null,null,null,"","","","","","","","","","","",null,null,""]
[null,null,null,"","","","","","","","","","","",null,null,""]
[null,null,null,"","","","","","","","","","","",null,null,""]
[null,null,null,"","","","","","","","","","","",null,null,""]
[null,null,null,"","","","","","","","","","","",null,null,""]
[null,null,null,"","","","","","","","","","","",null,null,""]
[null,null,null,"","","","","","","","","","","",null,null,""]
[null,null,null,"","","","","","","","","","","",null,null,""]
[null,null,null,"","","","","","","","","","","",null,null,""]
[null,null,null,"","","","","","","","","","","",null,null,""]
[null,null,null,"","","","","","","","","","","",null,null,""]
[null,null,null,"","","","","","","","","","","",null,null,""]
[null,null,null,"","","","","","","","","","","",null,null,""]
[null,null,null,"","","","","","","","","","","",null,null,""]
[null,null,null,"","","","","","","","","","","",null,null,""]
[null,null,null,"","","","","","","","","","","",null,null,""]
[null,null,null,"","","","","","","","","","","",null,null,""]
[null,null,null,"","","","","","","","","","","",null,null,""]
[null,null,null,"","","","","","","","","","","",null,null,""]
[null,null,null,"","","","","","","","","","","",null,null,""]
[null,null,null,"","","","","","","","","","","",null,null,""]
[null,null,null,"","","","","","","","","","","",null,null,""]
[null,null,null,"","","","","","","","","","","",null,null,""]
[null,null,null,"","","","","","","","","","","",null,null,""]
[null,null,null,"","","","","","","","","","","",null,null,""]
[null,null,null,"","","","","","","","","","","",null,null,""]
[null,null,null,"","","","","","","","","","","",null,null,""]
[null,null,null,"","","","","","","","","","","",null,null,""]
[null,null,null,"","","","","","","","","","","",null,null,""]
[null,null,null,"","","","","","","","","","","",null,null,""]
[null,null,null,"","","","","","","","","","","",null,null,""]
[null,null,null,"","","","","","","","","","","",null,null,""]
[null,null,null,"","","","","","","","","","","",null,null,""]
[null,null,null,"","","","","","","","","","","",null,null,""]
[null,null,null,"","","","","","","","","","","",null,null,""]
[null,null,null,"","","","","","","","","","","",null,null,""]
[null,null,null,"","","","","","","","","","","",null,null,""]
[null,null,null,"","","","","","","","","","","",null,null,""]
[null,null,null,"","","","","","","","","","","",null,null,""]
[null,null,null,"","","","","","","","","","","",null,null,""]
[null,null,null,"","","","","","","","","","","",null,null,""]
[null,null,null,"","","","","","","","","","","",null,null,""]
[null,null,null,"","","","","","","","","","","",null,null,""]
[null,null,null,"","","","","","","","","","","",null,null,""]
[null,null,null,"","","","","","","","","","","",null,null,""]
[null,null,null,"","","","","","","","","","","",null,null,""]
[null,null,null,"","","","","","","","","","","",null,null,""]
[null,null,null,"","","","","","","","","","","",null,null,""]
[null,null,null,"","","","","","","","","","","",null,null,""]
[null,null,null,"","","","","","","","","","","",null,null,""]
[null,null,null,"","","","","","","","","","","",null,null,""]
[null,null,null,{"$f":"IF(P134=\"\",\"\",IF(ISERR(VALUE(P134)),\"\",P134))","v":""},{"$f":"IF(OR(ISERROR(VLOOKUP($P134,W1D,1,FALSE)),ISBLANK(VLOOKUP($P134,W1D,2,FALSE))),\"\",VLOOKUP($P134,W1D,2,FALSE))","v":""},{"$f":"IF(OR(ISERROR(VLOOKUP($P134,W2D,1,FALSE)),ISBLANK(VLOOKUP($P134,W2D,2,FALSE))),\"\",VLOOKUP($P134,W2D,2,FALSE))","v":""},{"$f":"IF(OR(ISERROR(VLOOKUP($P134,W3D,1,FALSE)),ISBLANK(VLOOKUP($P134,W3D,2,FALSE))),\"\",VLOOKUP($P134,W3D,2,FALSE))","v":""},{"$f":"IF(OR(ISERROR(VLOOKUP($P134,W4D,1,FALSE)),ISBLANK(VLOOKUP($P134,W4D,2,FALSE))),\"\",VLOOKUP($P134,W4D,2,FALSE))","v":""},{"$f":"IF(OR(ISERROR(VLOOKUP($P134,W5D,1,FALSE)),ISBLANK(VLOOKUP($P134,W5D,2,FALSE))),\"\",VLOOKUP($P134,W5D,2,FALSE))","v":""},{"$f":"IF(OR(ISERROR(VLOOKUP($P134,W6D,1,FALSE)),ISBLANK(VLOOKUP($P134,W6D,2,FALSE))),\"\",VLOOKUP($P134,W6D,2,FALSE))","v":""},{"$f":"IF(OR(ISERROR(VLOOKUP($P134,W7D,1,FALSE)),ISBLANK(VLOOKUP($P134,W7D,2,FALSE))),\"\",VLOOKUP($P134,W7D,2,FALSE))","v":""},{"$f":"IF(OR(ISERROR(VLOOKUP($P134,W8D,1,FALSE)),ISBLANK(VLOOKUP($P134,W8D,2,FALSE))),\"\",VLOOKUP($P134,W8D,2,FALSE))","v":""},{"$f":"IF(OR(ISERROR(VLOOKUP($P134,W9D,1,FALSE)),ISBLANK(VLOOKUP($P134,W9D,2,FALSE))),\"\",VLOOKUP($P134,W9D,2,FALSE))","v":""},{"$f":"IF(OR(ISERROR(VLOOKUP($P134,W10D,1,FALSE)),ISBLANK(VLOOKUP($P134,W10D,2,FALSE))),\"\",VLOOKUP($P134,W10D,2,FALSE))","v":""},null,null,{"$f":"IF(COUNTIF(P$6:P$325,P134)>1,\"<Dup!\",\"\")","v":""}]
[null,null,null,"","","","","","","","","","","",null,null,""]
[null,null,null,"","","","","","","","","","","",null,null,""]
[null,null,null,"","","","","","","","","","","",null,null,""]
[null,null,null,"","","","","","","","","","","",null,null,""]
[null,null,null,"","","","","","","","","","","",null,null,""]
[null,null,null,"","","","","","","","","","","",null,null,""]
[null,null,null,"","","","","","","","","","","",null,null,""]
[null,null,null,"","","","","","","","","","","",null,null,""]
[null,null,null,"","","","","","","","","","","",null,null,""]
[null,null,null,"","","","","","","","","","","",null,null,""]
[null,null,null,"","","","","","","","","","","",null,null,""]
[null,null,null,"","","","","","","","","","","",null,null,""]
[null,null,null,"","","","","","","","","","","",null,null,""]
[null,null,null,"","","","","","","","","","","",null,null,""]
[null,null,null,"","","","","","","","","","","",null,null,""]
[null,null,null,"","","","","","","","","","","",null,null,""]
[null,null,null,"","","","","","","","","","","",null,null,""]
[null,null,null,"","","","","","","","","","","",null,null,""]
[null,null,null,"","","","","","","","","","","",null,null,""]
[null,null,null,"","","","","","","","","","","",null,null,""]
[null,null,null,"","","","","","","","","","","",null,null,""]
[null,null,null,"","","","","","","","","","","",null,null,""]
[null,null,null,"","","","","","","","","","","",null,null,""]
[null,null,null,"","","","","","","","","","","",null,null,""]
[null,null,null,"","","","","","","","","","","",null,null,""]
[null,null,null,"","","","","","","","","","","",null,null,""]
[null,null,null,"","","","","","","","","","","",null,null,""]
[null,null,null,"","","","","","","","","","","",null,null,""]
[null,null,null,"","","","","","","","","","","",null,null,""]
[null,null,null,"","","","","","","","","","","",null,null,""]
[null,null,null,"","","","","","","","","","","",null,null,""]
[null,null,null,"","","","","","","","","","","",null,null,""]
[null,null,null,"","","","","","","","","","","",null,null,""]
[null,null,null,"","","","","","","","","","","",null,null,""]
[null,null,null,"","","","","","","","","","","",null,null,""]
[null,null,null,"","","","","","","","","","","",null,null,""]
[null,null,null,"","","","","","","","","","","",null,null,""]
[null,null,null,"","","","","","","","","","","",null,null,""]
[null,null,null,"","","","","","","","","","","",null,null,""]
[null,null,null,"","","","","","","","","","","",null,null,""]
[null,null,null,"","","","","","","","","","","",null,null,""]
[null,null,null,"","","","","","","","","","","",null,null,""]
[null,null,null,"","","","","","","","","","","",null,null,""]
[null,null,null,"","","","","","","","","","","",null,null,""]
[null,null,null,"","","","","","","","","","","",null,null,""]
[null,null,null,"","","","","","","","","","","",null,null,""]
[null,null,null,"","","","","","","","","","","",null,null,""]
[null,null,null,"","","","","","","","","","","",null,null,""]
[null,null,null,"","","","","","","","","","","",null,null,""]
[null,null,null,"","","","","","","","","","","",null,null,""]
[null,null,null,"","","","","","","","","","","",null,null,""]
[null,null,null,"","","","","","","","","","","",null,null,""]
[null,null,null,"","","","","","","","","","","",null,null,""]
[null,null,null,"","","","","","","","","","","",null,null,""]
[null,null,null,"","","","","","","","","","","",null,null,""]
[null,null,null,"","","","","","","","","","","",null,null,""]
[null,null,null,"","","","","","","","","","","",null,null,""]
[null,null,null,"","","","","","","","","","","",null,null,""]
[null,null,null,"","","","","","","","","","","",null,null,""]
[null,null,null,"","","","","","","","","","","",null,null,""]
[null,null,null,"","","","","","","","","","","",null,null,""]
[null,null,null,"","","","","","","","","","","",null,null,""]
[null,null,null,"","","","","","","","","","","",null,null,""]
[null,null,null,{"$f":"IF(P198=\"\",\"\",IF(ISERR(VALUE(P198)),\"\",P198))","v":""},{"$f":"IF(OR(ISERROR(VLOOKUP($P198,W1D,1,FALSE)),ISBLANK(VLOOKUP($P198,W1D,2,FALSE))),\"\",VLOOKUP($P198,W1D,2,FALSE))","v":""},{"$f":"IF(OR(ISERROR(VLOOKUP($P198,W2D,1,FALSE)),ISBLANK(VLOOKUP($P198,W2D,2,FALSE))),\"\",VLOOKUP($P198,W2D,2,FALSE))","v":""},{"$f":"IF(OR(ISERROR(VLOOKUP($P198,W3D,1,FALSE)),ISBLANK(VLOOKUP($P198,W3D,2,FALSE))),\"\",VLOOKUP($P198,W3D,2,FALSE))","v":""},{"$f":"IF(OR(ISERROR(VLOOKUP($P198,W4D,1,FALSE)),ISBLANK(VLOOKUP($P198,W4D,2,FALSE))),\"\",VLOOKUP($P198,W4D,2,FALSE))","v":""},{"$f":"IF(OR(ISERROR(VLOOKUP($P198,W5D,1,FALSE)),ISBLANK(VLOOKUP($P198,W5D,2,FALSE))),\"\",VLOOKUP($P198,W5D,2,FALSE))","v":""},{"$f":"IF(OR(ISERROR(VLOOKUP($P198,W6D,1,FALSE)),ISBLANK(VLOOKUP($P198,W6D,2,FALSE))),\"\",VLOOKUP($P198,W6D,2,FALSE))","v":""},{"$f":"IF(OR(ISERROR(VLOOKUP($P198,W7D,1,FALSE)),ISBLANK(VLOOKUP($P198,W7D,2,FALSE))),\"\",VLOOKUP($P198,W7D,2,FALSE))","v":""},{"$f":"IF(OR(ISERROR(VLOOKUP($P198,W8D,1,FALSE)),ISBLANK(VLOOKUP($P198,W8D,2,FALSE))),\"\",VLOOKUP($P198,W8D,2,FALSE))","v":""},{"$f":"IF(OR(ISERROR(VLOOKUP($P198,W9D,1,FALSE)),ISBLANK(VLOOKUP($P198,W9D,2,FALSE))),\"\",VLOOKUP($P198,W9D,2,FALSE))","v":""},{"$f":"IF(OR(ISERROR(VLOOKUP($P198,W10D,1,FALSE)),ISBLANK(VLOOKUP($P198,W10D,2,FALSE))),\"\",VLOOKUP($P198,W10D,2,FALSE))","v":""},null,null,{"$f":"IF(COUNTIF(P$6:P$325,P198)>1,\"<Dup!\",\"\")","v":""}]
[null,null,null,"","","","","","","","","","","",null,null,""]
[null,null,null,"","","","","","","","","","","",null,null,""]
[null,null,null,"","","","","","","","","","","",null,null,""]
[null,null,null,"","","","","","","","","","","",null,null,""]
[null,null,null,"","","","","","","","","","","",null,null,""]
[null,null,null,"","","","","","","","","","","",null,null,""]
[null,null,null,"","","","","","","","","","","",null,null,""]
[null,null,null,"","","","","","","","","","","",null,null,""]
[null,null,null,"","","","","","","","","","","",null,null,""]
[null,null,null,"","","","","","","","","","","",null,null,""]
[null,null,null,"","","","","","","","","","","",null,null,""]
[null,null,null,"","","","","","","","","","","",null,null,""]
[null,null,null,"","","","","","","","","","","",null,null,""]
[null,null,null,"","","","","","","","","","","",null,null,""]
[null,null,null,"","","","","","","","","","","",null,null,""]
[null,null,null,"","","","","","","","","","","",null,null,""]
[null,null,null,"","","","","","","","","","","",null,null,""]
[null,null,null,"","","","","","","","","","","",null,null,""]
[null,null,null,"","","","","","","","","","","",null,null,""]
[null,null,null,"","","","","","","","","","","",null,null,""]
[null,null,null,"","","","","","","","","","","",null,null,""]
[null,null,null,"","","","","","","","","","","",null,null,""]
[null,null,null,"","","","","","","","","","","",null,null,""]
[null,null,null,"","","","","","","","","","","",null,null,""]
[null,null,null,"","","","","","","","","","","",null,null,""]
[null,null,null,"","","","","","","","","","","",null,null,""]
[null,null,null,"","","","","","","","","","","",null,null,""]
[null,null,null,"","","","","","","","","","","",null,null,""]
[null,null,null,"","","","","","","","","","","",null,null,""]
[null,null,null,"","","","","","","","","","","",null,null,""]
[null,null,null,"","","","","","","","","","","",null,null,""]
[null,null,null,"","","","","","","","","","","",null,null,""]
[null,null,null,"","","","","","","","","","","",null,null,""]
[null,null,null,"","","","","","","","","","","",null,null,""]
[null,null,null,"","","","","","","","","","","",null,null,""]
[null,null,null,"","","","","","","","","","","",null,null,""]
[null,null,null,"","","","","","","","","","","",null,null,""]
[null,null,null,"","","","","","","","","","","",null,null,""]
[null,null,null,"","","","","","","","","","","",null,null,""]
[null,null,null,"","","","","","","","","","","",null,null,""]
[null,null,null,"","","","","","","","","","","",null,null,""]
[null,null,null,"","","","","","","","","","","",null,null,""]
[null,null,null,"","","","","","","","","","","",null,null,""]
[null,null,null,"","","","","","","","","","","",null,null,""]
[null,null,null,"","","","","","","","","","","",null,null,""]
[null,null,null,"","","","","","","","","","","",null,null,""]
[null,null,null,"","","","","","","","","","","",null,null,""]
[null,null,null,"","","","","","","","","","","",null,null,""]
[null,null,null,"","","","","","","","","","","",null,null,""]
[null,null,null,"","","","","","","","","","","",null,null,""]
[null,null,null,"","","","","","","","","","","",null,null,""]
[null,null,null,"","","","","","","","","","","",null,null,""]
[null,null,null,"","","","","","","","","","","",null,null,""]
[null,null,null,"","","","","","","","","","","",null,null,""]
[null,null,null,"","","","","","","","","","","",null,null,""]
[null,null,null,"","","","","","","","","","","",null,null,""]
[null,null,null,"","","","","","","","","","","",null,null,""]
[null,null,null,"","","","","","","","","","","",null,null,""]
[null,null,null,"","","","","","","","","","","",null,null,""]
[null,null,null,"","","","","","","","","","","",null,null,""]
[null,null,null,"","","","","","","","","","","",null,null,""]
[null,null,null,"","","","","","","","","","","",null,null,""]
[null,null,null,"","","","","","","","","","","",null,null,""]
[null,null,null,{"$f":"IF(P262=\"\",\"\",IF(ISERR(VALUE(P262)),\"\",P262))","v":""},{"$f":"IF(OR(ISERROR(VLOOKUP($P262,W1D,1,FALSE)),ISBLANK(VLOOKUP($P262,W1D,2,FALSE))),\"\",VLOOKUP($P262,W1D,2,FALSE))","v":""},{"$f":"IF(OR(ISERROR(VLOOKUP($P262,W2D,1,FALSE)),ISBLANK(VLOOKUP($P262,W2D,2,FALSE))),\"\",VLOOKUP($P262,W2D,2,FALSE))","v":""},{"$f":"IF(OR(ISERROR(VLOOKUP($P262,W3D,1,FALSE)),ISBLANK(VLOOKUP($P262,W3D,2,FALSE))),\"\",VLOOKUP($P262,W3D,2,FALSE))","v":""},{"$f":"IF(OR(ISERROR(VLOOKUP($P262,W4D,1,FALSE)),ISBLANK(VLOOKUP($P262,W4D,2,FALSE))),\"\",VLOOKUP($P262,W4D,2,FALSE))","v":""},{"$f":"IF(OR(ISERROR(VLOOKUP($P262,W5D,1,FALSE)),ISBLANK(VLOOKUP($P262,W5D,2,FALSE))),\"\",VLOOKUP($P262,W5D,2,FALSE))","v":""},{"$f":"IF(OR(ISERROR(VLOOKUP($P262,W6D,1,FALSE)),ISBLANK(VLOOKUP($P262,W6D,2,FALSE))),\"\",VLOOKUP($P262,W6D,2,FALSE))","v":""},{"$f":"IF(OR(ISERROR(VLOOKUP($P262,W7D,1,FALSE)),ISBLANK(VLOOKUP($P262,W7D,2,FALSE))),\"\",VLOOKUP($P262,W7D,2,FALSE))","v":""},{"$f":"IF(OR(ISERROR(VLOOKUP($P262,W8D,1,FALSE)),ISBLANK(VLOOKUP($P262,W8D,2,FALSE))),\"\",VLOOKUP($P262,W8D,2,FALSE))","v":""},{"$f":"IF(OR(ISERROR(VLOOKUP($P262,W9D,1,FALSE)),ISBLANK(VLOOKUP($P262,W9D,2,FALSE))),\"\",VLOOKUP($P262,W9D,2,FALSE))","v":""},{"$f":"IF(OR(ISERROR(VLOOKUP($P262,W10D,1,FALSE)),ISBLANK(VLOOKUP($P262,W10D,2,FALSE))),\"\",VLOOKUP($P262,W10D,2,FALSE))","v":""},null,null,{"$f":"IF(COUNTIF(P$6:P$325,P262)>1,\"<Dup!\",\"\")","v":""}]
[null,null,null,"","","","","","","","","","","",null,null,""]
[null,null,null,"","","","","","","","","","","",null,null,""]
[null,null,null,"","","","","","","","","","","",null,null,""]
[null,null,null,"","","","","","","","","","","",null,null,""]
[null,null,null,"","","","","","","","","","","",null,null,""]
[null,null,null,"","","","","","","","","","","",null,null,""]
[null,null,null,"","","","","","","","","","","",null,null,""]
[null,null,null,"","","","","","","","","","","",null,null,""]
[null,null,null,"","","","","","","","","","","",null,null,""]
[null,null,null,"","","","","","","","","","","",null,null,""]
[null,null,null,"","","","","","","","","","","",null,null,""]
[null,null,null,"","","","","","","","","","","",null,null,""]
[null,null,null,"","","","","","","","","","","",null,null,""]
[null,null,null,"","","","","","","","","","","",null,null,""]
[null,null,null,"","","","","","","","","","","",null,null,""]
[null,null,null,"","","","","","","","","","","",null,null,""]
[null,null,null,"","","","","","","","","","","",null,null,""]
[null,null,null,"","","","","","","","","","","",null,null,""]
[null,null,null,"","","","","","","","","","","",null,null,""]
[null,null,null,"","","","","","","","","","","",null,null,""]
[null,null,null,"","","","","","","","","","","",null,null,""]
[null,null,null,"","","","","","","","","","","",null,null,""]
[null,null,null,"","","","","","","","","","","",null,null,""]
[null,null,null,"","","","","","","","","","","",null,null,""]
[null,null,null,"","","","","","","","","","","",null,null,""]
[null,null,null,"","","","","","","","","","","",null,null,""]
[null,null,null,"","","","","","","","","","","",null,null,""]
[null,null,null,"","","","","","","","","","","",null,null,""]
[null,null,null,"","","","","","","","","","","",null,null,""]
[null,null,null,"","","","","","","","","","","",null,null,""]
[null,null,null,"","","","","","","","","","","",null,null,""]
[null,null,null,"","","","","","","","","","","",null,null,""]
[null,null,null,"","","","","","","","","","","",null,null,""]
[null,null,null,"","","","","","","","","","","",null,null,""]
[null,null,null,"","","","","","","","","","","",null,null,""]
[null,null,null,"","","","","","","","","","","",null,null,""]
[null,null,null,"","","","","","","","","","","",null,null,""]
[null,null,null,"","","","","","","","","","","",null,null,""]
[null,null,null,"","","","","","","","","","","",null,null,""]
[null,null,null,"","","","","","","","","","","",null,null,""]
[null,null,null,"","","","","","","","","","","",null,null,""]
[null,null,null,"","","","","","","","","","","",null,null,""]
[null,null,null,"","","","","","","","","","","",null,null,""]
[null,null,null,"","","","","","","","","","","",null,null,""]
[null,null,null,"","","","","","","","","","","",null,null,""]
[null,null,null,"","","","","","","","","","","",null,null,""]
[null,null,null,"","","","","","","","","","","",null,null,""]
[null,null,null,"","","","","","","","","","","",null,null,""]
[null,null,null,"","","","","","","","","","","",null,null,""]
[null,null,null,"","","","","","","","","","","",null,null,""]
[null,null,null,"","","","","","","","","","","",null,null,""]
[null,null,null,"","","","","","","","","","","",null,null,""]
[null,null,null,"","","","","","","","","","","",null,null,""]
[null,null,null,"","","","","","","","","","","",null,null,""]
[null,null,null,"","","","","","","","","","","",null,null,""]
[null,null,null,"","","","","","","","","","","",null,null,""]
[null,null,null,"","","","","","","","","","","",null,null,""]
[null,null,null,"","","","","","","","","","","",null,null,""]
[null,null,null,"","","","","","","","","","","",null,null,""]
[null,null,null,"","","","","","","","","","","",null,null,""]
[null,null,null,"","","","","","","","","","","",null,null,""]
[null,null,null,"","","","","","","","","","","",null,null,""]
[null,null,null,"","","","","","","","","","","",null,null,""]

{"sheet":"W1","index":3,"n_rows":23,"n_cols":11,"rows_kept":23,"cut":false,"hidden":false,"merged":[[0,5,0,8],[1,1,1,2],[1,5,1,8],[2,0,2,2]]}
["Date: ",{"$f":"IF(INFO!B12=\"\",\"\",INFO!B12)","v":""},"Week 1",null,"League: ",{"$f":"IF(INFO!C1=\"\",\"\",INFO!C1)","v":""}]
["Course: ",{"$f":"IF(INFO!E12=\"\",\"\",INFO!E12)","v":""},null,null,"Layout: ",{"$f":"IF(INFO!G12=\"\",\"\",INFO!G12)","v":""}]
["** Enter New Players First on UPLOAD page **",null,null,null,{"$f":"COUNTIF(E6:E186,\">0\")","v":0}," = Number who Played",null,null,null,null,"Instructions"]
[null,null,null,"PDGA","Round",null,null,null,"Div",null,"These weekly pages are designed to help you run your league each week."]
["DivCode","First Name","Last Name","or Code","Score","Opt.","Opt.","Opt.","Rank",null,"You may relabel columns F thru I and insert formulas in those columns to"]
[null,null,null,null,null,null,null,null,null,null,"do whatever kind of points, payout or handicap calculations you wish."]
[null,null,null,null,null,null,null,null,null,null,"You may even insert more columns after Column I if you need them."]
[null,null,null,null,null,null,null,null,null,null,"Please do not fiddle with columns A thru E nor insert more rows."]
[]
[null,null,null,null,null,null,null,null,null,null,"New Players: Always enter the names and PDGA or League codes first"]
[null,null,null,null,null,null,null,null,null,null,"on the UPLOAD page. Then, click the red arrow below to get the names"]
[null,null,null,null,null,null,null,null,null,null,"of all league players automatically pasted on this page. You may change"]
[null,null,null,null,null,null,null,null,null,null,"the DivCode for a player if player is switching divisions. Then, simply enter"]
[null,null,null,null,null,null,null,null,null,null,"the raw score for each player this week in column E. Each score will"]
[null,null,null,null,null,null,null,null,null,null,"automatically show up on the UPLOAD page to update each player's scores."]
[null,null,null,null,null,null,null,null,null,null,"You may sort the order of players on this page at any time without messing"]
[null,null,null,null,null,null,null,null,null,null,"up the links to the UPLOAD page. BUT DO NOT INSERT ANY ROWS."]
[]
[]
[]
[]
[]
[null,null,null,null,null,null,null,null,null,null,"Open Office: This arrow button will not work in Open Office. "]

{"sheet":"W2","index":4,"n_rows":24,"n_cols":11,"rows_kept":24,"cut":false,"hidden":false,"merged":[[0,5,0,8],[1,1,1,2],[1,5,1,8],[2,0,2,2]]}
["Date: ",{"$f":"IF(INFO!B13=\"\",\"\",INFO!B13)","v":""},"Week 2",null,"League: ",{"$f":"IF(INFO!C1=\"\",\"\",INFO!C1)","v":""}]
["Course: ",{"$f":"IF(INFO!E13=\"\",\"\",INFO!E13)","v":""},null,null,"Layout: ",{"$f":"IF(INFO!G13=\"\",\"\",INFO!G13)","v":""}]
["** Enter New Players First on UPLOAD page **",null,null,null,{"$f":"COUNTIF(E6:E186,\">0\")","v":0}," = Number who Played",null,null,null,null,"Instructions"]
[null,null,null,"PDGA","Round",null,null,null,"Div",null,"These weekly pages are designed to help you run your league each week."]
["DivCode","First Name","Last Name","or Code","Score","Opt.","Opt.","Opt.","Rank",null,"You may relabel columns F thru I and insert formulas in those columns to"]
[null,null,null,null,null,null,null,null,null,null,"do whatever kind of points, payout or handicap calculations you wish."]
[null,null,null,null,null,null,null,null,null,null,"You may even insert more columns after Column I if you need them."]
[null,null,null,null,null,null,null,null,null,null,"Please do not fiddle with columns A thru E nor insert more rows."]
[]
[null,null,null,null,null,null,null,null,null,null,"New Players: Always enter the names and PDGA or League codes first"]
[null,null,null,null,null,null,null,null,null,null,"on the UPLOAD page. Then, click the red arrow below to get the names"]
[null,null,null,null,null,null,null,null,null,null,"of all league players automatically pasted on this page. You may change"]
[null,null,null,null,null,null,null,null,null,null,"the DivCode for a player if player is switching divisions. Then, simply enter"]
[null,null,null,null,null,null,null,null,null,null,"the raw score for each player this week in column E. Each score will"]
[null,null,null,null,null,null,null,null,null,null,"automatically show up on the UPLOAD page to update each player's scores."]
[null,null,null,null,null,null,null,null,null,null,"You may sort the order of players on this page at any time without messing"]
[null,null,null,null,null,null,null,null,null,null,"up the links to the UPLOAD page. BUT DO NOT INSERT ANY ROWS."]
[]
[]
[]
[]
[]
[null,null,null,null,null,null,null,null,null,null,"Open Office: This arrow button will not work in Open Office. Here are the steps"]
[null,null,null,null,null,null,null,null,null,null,"Please download and use Open Office version of this league template"]

{"sheet":"W3","index":5,"n_rows":24,"n_cols":11,"rows_kept":24,"cut":false,"hidden":false,"merged":[[0,5,0,8],[1,1,1,2],[1,5,1,8],[2,0,2,2]]}
["Date: ",{"$f":"IF(INFO!B14=\"\",\"\",INFO!B14)","v":""},"Week 3",null,"League: ",{"$f":"IF(INFO!C1=\"\",\"\",INFO!C1)","v":""}]
["Course: ",{"$f":"IF(INFO!E14=\"\",\"\",INFO!E14)","v":""},null,null,"Layout: ",{"$f":"IF(INFO!G14=\"\",\"\",INFO!G14)","v":""}]
["** Enter New Players First on UPLOAD page **",null,null,null,{"$f":"COUNTIF(E6:E186,\">0\")","v":0}," = Number who Played",null,null,null,null,"Instructions"]
[null,null,null,"PDGA","Round",null,null,null,"Div",null,"These weekly pages are designed to help you run your league each week."]
["DivCode","First Name","Last Name","or Code","Score","Opt.","Opt.","Opt.","Rank",null,"You may relabel columns F thru I and insert formulas in those columns to"]
[null,null,null,null,null,null,null,null,null,null,"do whatever kind of points, payout or handicap calculations you wish."]
[null,null,null,null,null,null,null,null,null,null,"You may even insert more columns after Column I if you need them."]
[null,null,null,null,null,null,null,null,null,null,"Please do not fiddle with columns A thru E nor insert more rows."]
[]
[null,null,null,null,null,null,null,null,null,null,"New Players: Always enter the names and PDGA or League codes first"]
[null,null,null,null,null,null,null,null,null,null,"on the UPLOAD page. Then, click the red arrow below to get the names"]
[null,null,null,null,null,null,null,null,null,null,"of all league players automatically pasted on this page. You may change"]
[null,null,null,null,null,null,null,null,null,null,"the DivCode for a player if player is switching divisions. Then, simply enter"]
[null,null,null,null,null,null,null,null,null,null,"the raw score for each player this week in column E. Each score will"]
[null,null,null,null,null,null,null,null,null,null,"automatically show up on the UPLOAD page to update each player's scores."]
[null,null,null,null,null,null,null,null,null,null,"You may sort the order of players on this page at any time without messing"]
[null,null,null,null,null,null,null,null,null,null,"up the links to the UPLOAD page. BUT DO NOT INSERT ANY ROWS."]
[]
[]
[]
[]
[]
[null,null,null,null,null,null,null,null,null,null,"Open Office: This arrow button will not work in Open Office. Here are the steps"]
[null,null,null,null,null,null,null,null,null,null,"Please download and use Open Office version of this league template"]

{"sheet":"W4","index":6,"n_rows":24,"n_cols":11,"rows_kept":24,"cut":false,"hidden":false,"merged":[[0,5,0,8],[1,1,1,2],[1,5,1,8],[2,0,2,2]]}
["Date: ",{"$f":"IF(INFO!B15=\"\",\"\",INFO!B15)","v":""},"Week 4",null,"League: ",{"$f":"IF(INFO!C1=\"\",\"\",INFO!C1)","v":""}]
["Course: ",{"$f":"IF(INFO!E15=\"\",\"\",INFO!E15)","v":""},null,null,"Layout: ",{"$f":"IF(INFO!G15=\"\",\"\",INFO!G15)","v":""}]
["** Enter New Players First on UPLOAD page **",null,null,null,{"$f":"COUNTIF(E6:E186,\">0\")","v":0}," = Number who Played",null,null,null,null,"Instructions"]
[null,null,null,"PDGA","Round",null,null,null,"Div",null,"These weekly pages are designed to help you run your league each week."]
["DivCode","First Name","Last Name","or Code","Score","Opt.","Opt.","Opt.","Rank",null,"You may relabel columns F thru I and insert formulas in those columns to"]
[null,null,null,null,null,null,null,null,null,null,"do whatever kind of points, payout or handicap calculations you wish."]
[null,null,null,null,null,null,null,null,null,null,"You may even insert more columns after Column I if you need them."]
[null,null,null,null,null,null,null,null,null,null,"Please do not fiddle with columns A thru E nor insert more rows."]
[]
[null,null,null,null,null,null,null,null,null,null,"New Players: Always enter the names and PDGA or League codes first"]
[null,null,null,null,null,null,null,null,null,null,"on the UPLOAD page. Then, click the red arrow below to get the names"]
[null,null,null,null,null,null,null,null,null,null,"of all league players automatically pasted on this page. You may change"]
[null,null,null,null,null,null,null,null,null,null,"the DivCode for a player if player is switching divisions. Then, simply enter"]
[null,null,null,null,null,null,null,null,null,null,"the raw score for each player this week in column E. Each score will"]
[null,null,null,null,null,null,null,null,null,null,"automatically show up on the UPLOAD page to update each player's scores."]
[null,null,null,null,null,null,null,null,null,null,"You may sort the order of players on this page at any time without messing"]
[null,null,null,null,null,null,null,null,null,null,"up the links to the UPLOAD page. BUT DO NOT INSERT ANY ROWS."]
[]
[]
[]
[]
[]
[null,null,null,null,null,null,null,null,null,null,"Open Office: This arrow button will not work in Open Office. Here are the steps"]
[null,null,null,null,null,null,null,null,null,null,"Please download and use Open Office version of this league template"]

{"sheet":"W5","index":7,"n_rows":24,"n_cols":11,"rows_kept":24,"cut":false,"hidden":false,"merged":[[0,5,0,8],[1,1,1,2],[1,5,1,8],[2,0,2,2]]}
["Date: ",{"$f":"IF(INFO!B16=\"\",\"\",INFO!B16)","v":""},"Week 5",null,"League: ",{"$f":"IF(INFO!C1=\"\",\"\",INFO!C1)","v":""}]
["Course: ",{"$f":"IF(INFO!E16=\"\",\"\",INFO!E16)","v":""},null,null,"Layout: ",{"$f":"IF(INFO!G16=\"\",\"\",INFO!G16)","v":""}]
["** Enter New Players First on UPLOAD page **",null,null,null,{"$f":"COUNTIF(E6:E186,\">0\")","v":0}," = Number who Played",null,null,null,null,"Instructions"]
[null,null,null,"PDGA","Round",null,null,null,"Div",null,"These weekly pages are designed to help you run your league each week."]
["DivCode","First Name","Last Name","or Code","Score","Opt.","Opt.","Opt.","Rank",null,"You may relabel columns F thru I and insert formulas in those columns to"]
[null,null,null,null,null,null,null,null,null,null,"do whatever kind of points, payout or handicap calculations you wish."]
[null,null,null,null,null,null,null,null,null,null,"You may even insert more columns after Column I if you need them."]
[null,null,null,null,null,null,null,null,null,null,"Please do not fiddle with columns A thru E nor insert more rows."]
[]
[null,null,null,null,null,null,null,null,null,null,"New Players: Always enter the names and PDGA or League codes first"]
[null,null,null,null,null,null,null,null,null,null,"on the UPLOAD page. Then, click the red arrow below to get the names"]
[null,null,null,null,null,null,null,null,null,null,"of all league players automatically pasted on this page. You may change"]
[null,null,null,null,null,null,null,null,null,null,"the DivCode for a player if player is switching divisions. Then, simply enter"]
[null,null,null,null,null,null,null,null,null,null,"the raw score for each player this week in column E. Each score will"]
[null,null,null,null,null,null,null,null,null,null,"automatically show up on the UPLOAD page to update each player's scores."]
[null,null,null,null,null,null,null,null,null,null,"You may sort the order of players on this page at any time without messing"]
[null,null,null,null,null,null,null,null,null,null,"up the links to the UPLOAD page. BUT DO NOT INSERT ANY ROWS."]
[]
[]
[]
[]
[]
[null,null,null,null,null,null,null,null,null,null,"Open Office: This arrow button will not work in Open Office. Here are the steps"]
[null,null,null,null,null,null,null,null,null,null,"Please download and use Open Office version of this league template"]

{"sheet":"W6","index":8,"n_rows":24,"n_cols":11,"rows_kept":24,"cut":false,"hidden":false,"merged":[[0,5,0,8],[1,1,1,2],[1,5,1,8],[2,0,2,2]]}
["Date: ",{"$f":"IF(INFO!B17=\"\",\"\",INFO!B17)","v":""},"Week 6",null,"League: ",{"$f":"IF(INFO!C1=\"\",\"\",INFO!C1)","v":""}]
["Course: ",{"$f":"IF(INFO!E17=\"\",\"\",INFO!E17)","v":""},null,null,"Layout: ",{"$f":"IF(INFO!G17=\"\",\"\",INFO!G17)","v":""}]
["** Enter New Players First on UPLOAD page **",null,null,null,{"$f":"COUNTIF(E6:E186,\">0\")","v":0}," = Number who Played",null,null,null,null,"Instructions"]
[null,null,null,"PDGA","Round",null,null,null,"Div",null,"These weekly pages are designed to help you run your league each week."]
["DivCode","First Name","Last Name","or Code","Score","Opt.","Opt.","Opt.","Rank",null,"You may relabel columns F thru I and insert formulas in those columns to"]
[null,null,null,null,null,null,null,null,null,null,"do whatever kind of points, payout or handicap calculations you wish."]
[null,null,null,null,null,null,null,null,null,null,"You may even insert more columns after Column I if you need them."]
[null,null,null,null,null,null,null,null,null,null,"Please do not fiddle with columns A thru E nor insert more rows."]
[]
[null,null,null,null,null,null,null,null,null,null,"New Players: Always enter the names and PDGA or League codes first"]
[null,null,null,null,null,null,null,null,null,null,"on the UPLOAD page. Then, click the red arrow below to get the names"]
[null,null,null,null,null,null,null,null,null,null,"of all league players automatically pasted on this page. You may change"]
[null,null,null,null,null,null,null,null,null,null,"the DivCode for a player if player is switching divisions. Then, simply enter"]
[null,null,null,null,null,null,null,null,null,null,"the raw score for each player this week in column E. Each score will"]
[null,null,null,null,null,null,null,null,null,null,"automatically show up on the UPLOAD page to update each player's scores."]
[null,null,null,null,null,null,null,null,null,null,"You may sort the order of players on this page at any time without messing"]
[null,null,null,null,null,null,null,null,null,null,"up the links to the UPLOAD page. BUT DO NOT INSERT ANY ROWS."]
[]
[]
[]
[]
[]
[null,null,null,null,null,null,null,null,null,null,"Open Office: This arrow button will not work in Open Office. Here are the steps"]
[null,null,null,null,null,null,null,null,null,null,"Please download and use Open Office version of this league template"]

{"sheet":"W7","index":9,"n_rows":24,"n_cols":11,"rows_kept":24,"cut":false,"hidden":false,"merged":[[0,5,0,8],[1,1,1,2],[1,5,1,8],[2,0,2,2]]}
["Date: ",{"$f":"IF(INFO!B18=\"\",\"\",INFO!B18)","v":""},"Week 7",null,"League: ",{"$f":"IF(INFO!C1=\"\",\"\",INFO!C1)","v":""}]
["Course: ",{"$f":"IF(INFO!E18=\"\",\"\",INFO!E18)","v":""},null,null,"Layout: ",{"$f":"IF(INFO!G18=\"\",\"\",INFO!G18)","v":""}]
["** Enter New Players First on UPLOAD page **",null,null,null,{"$f":"COUNTIF(E6:E186,\">0\")","v":0}," = Number who Played",null,null,null,null,"Instructions"]
[null,null,null,"PDGA","Round",null,null,null,"Div",null,"These weekly pages are designed to help you run your league each week."]
["DivCode","First Name","Last Name","or Code","Score","Opt.","Opt.","Opt.","Rank",null,"You may relabel columns F thru I and insert formulas in those columns to"]
[null,null,null,null,null,null,null,null,null,null,"do whatever kind of points, payout or handicap calculations you wish."]
[null,null,null,null,null,null,null,null,null,null,"You may even insert more columns after Column I if you need them."]
[null,null,null,null,null,null,null,null,null,null,"Please do not fiddle with columns A thru E nor insert more rows."]
[]
[null,null,null,null,null,null,null,null,null,null,"New Players: Always enter the names and PDGA or League codes first"]
[null,null,null,null,null,null,null,null,null,null,"on the UPLOAD page. Then, click the red arrow below to get the names"]
[null,null,null,null,null,null,null,null,null,null,"of all league players automatically pasted on this page. You may change"]
[null,null,null,null,null,null,null,null,null,null,"the DivCode for a player if player is switching divisions. Then, simply enter"]
[null,null,null,null,null,null,null,null,null,null,"the raw score for each player this week in column E. Each score will"]
[null,null,null,null,null,null,null,null,null,null,"automatically show up on the UPLOAD page to update each player's scores."]
[null,null,null,null,null,null,null,null,null,null,"You may sort the order of players on this page at any time without messing"]
[null,null,null,null,null,null,null,null,null,null,"up the links to the UPLOAD page. BUT DO NOT INSERT ANY ROWS."]
[]
[]
[]
[]
[]
[null,null,null,null,null,null,null,null,null,null,"Open Office: This arrow button will not work in Open Office. Here are the steps"]
[null,null,null,null,null,null,null,null,null,null,"Please download and use Open Office version of this league template"]

{"sheet":"W8","index":10,"n_rows":24,"n_cols":11,"rows_kept":24,"cut":false,"hidden":false,"merged":[[0,5,0,8],[1,1,1,2],[1,5,1,8],[2,0,2,2]]}
["Date: ",{"$f":"IF(INFO!B19=\"\",\"\",INFO!B19)","v":""},"Week 8",null,"League: ",{"$f":"IF(INFO!C1=\"\",\"\",INFO!C1)","v":""}]
["Course: ",{"$f":"IF(INFO!E19=\"\",\"\",INFO!E19)","v":""},null,null,"Layout: ",{"$f":"IF(INFO!G19=\"\",\"\",INFO!G19)","v":""}]
["** Enter New Players First on UPLOAD page **",null,null,null,{"$f":"COUNTIF(E6:E186,\">0\")","v":0}," = Number who Played",null,null,null,null,"Instructions"]
[null,null,null,"PDGA","Round",null,null,null,"Div",null,"These weekly pages are designed to help you run your league each week."]
["DivCode","First Name","Last Name","or Code","Score","Opt.","Opt.","Opt.","Rank",null,"You may relabel columns F thru I and insert formulas in those columns to"]
[null,null,null,null,null,null,null,null,null,null,"do whatever kind of points, payout or handicap calculations you wish."]
[null,null,null,null,null,null,null,null,null,null,"You may even insert more columns after Column I if you need them."]
[null,null,null,null,null,null,null,null,null,null,"Please do not fiddle with columns A thru E nor insert more rows."]
[]
[null,null,null,null,null,null,null,null,null,null,"New Players: Always enter the names and PDGA or League codes first"]
[null,null,null,null,null,null,null,null,null,null,"on the UPLOAD page. Then, click the red arrow below to get the names"]
[null,null,null,null,null,null,null,null,null,null,"of all league players automatically pasted on this page. You may change"]
[null,null,null,null,null,null,null,null,null,null,"the DivCode for a player if player is switching divisions. Then, simply enter"]
[null,null,null,null,null,null,null,null,null,null,"the raw score for each player this week in column E. Each score will"]
[null,null,null,null,null,null,null,null,null,null,"automatically show up on the UPLOAD page to update each player's scores."]
[null,null,null,null,null,null,null,null,null,null,"You may sort the order of players on this page at any time without messing"]
[null,null,null,null,null,null,null,null,null,null,"up the links to the UPLOAD page. BUT DO NOT INSERT ANY ROWS."]
[]
[]
[]
[]
[]
[null,null,null,null,null,null,null,null,null,null,"Open Office: This arrow button will not work in Open Office. Here are the steps"]
[null,null,null,null,null,null,null,null,null,null,"Please download and use Open Office version of this league template"]

{"sheet":"W9","index":11,"n_rows":24,"n_cols":11,"rows_kept":24,"cut":false,"hidden":false,"merged":[[0,5,0,8],[1,1,1,2],[1,5,1,8],[2,0,2,2]]}
["Date: ",{"$f":"IF(INFO!B20=\"\",\"\",INFO!B20)","v":""},"Week 9",null,"League: ",{"$f":"IF(INFO!C1=\"\",\"\",INFO!C1)","v":""}]
["Course: ",{"$f":"IF(INFO!E20=\"\",\"\",INFO!E20)","v":""},null,null,"Layout: ",{"$f":"IF(INFO!G20=\"\",\"\",INFO!G20)","v":""}]
["** Enter New Players First on UPLOAD page **",null,null,null,{"$f":"COUNTIF(E6:E186,\">0\")","v":0}," = Number who Played",null,null,null,null,"Instructions"]
[null,null,null,"PDGA","Round",null,null,null,"Div",null,"These weekly pages are designed to help you run your league each week."]
["DivCode","First Name","Last Name","or Code","Score","Opt.","Opt.","Opt.","Rank",null,"You may relabel columns F thru I and insert formulas in those columns to"]
[null,null,null,null,null,null,null,null,null,null,"do whatever kind of points, payout or handicap calculations you wish."]
[null,null,null,null,null,null,null,null,null,null,"You may even insert more columns after Column I if you need them."]
[null,null,null,null,null,null,null,null,null,null,"Please do not fiddle with columns A thru E nor insert more rows."]
[]
[null,null,null,null,null,null,null,null,null,null,"New Players: Always enter the names and PDGA or League codes first"]
[null,null,null,null,null,null,null,null,null,null,"on the UPLOAD page. Then, click the red arrow below to get the names"]
[null,null,null,null,null,null,null,null,null,null,"of all league players automatically pasted on this page. You may change"]
[null,null,null,null,null,null,null,null,null,null,"the DivCode for a player if player is switching divisions. Then, simply enter"]
[null,null,null,null,null,null,null,null,null,null,"the raw score for each player this week in column E. Each score will"]
[null,null,null,null,null,null,null,null,null,null,"automatically show up on the UPLOAD page to update each player's scores."]
[null,null,null,null,null,null,null,null,null,null,"You may sort the order of players on this page at any time without messing"]
[null,null,null,null,null,null,null,null,null,null,"up the links to the UPLOAD page. BUT DO NOT INSERT ANY ROWS."]
[]
[]
[]
[]
[]
[null,null,null,null,null,null,null,null,null,null,"Open Office: This arrow button will not work in Open Office. Here are the steps"]
[null,null,null,null,null,null,null,null,null,null,"Please download and use Open Office version of this league template"]

{"sheet":"W10","index":12,"n_rows":24,"n_cols":11,"rows_kept":24,"cut":false,"hidden":false,"merged":[[0,5,0,8],[1,1,1,2],[1,5,1,8],[2,0,2,2]]}
["Date: ",{"$f":"IF(INFO!B21=\"\",\"\",INFO!B21)","v":""},"Week 10",null,"League: ",{"$f":"IF(INFO!C1=\"\",\"\",INFO!C1)","v":""}]
["Course: ",{"$f":"IF(INFO!E21=\"\",\"\",INFO!E21)","v":""},null,null,"Layout: ",{"$f":"IF(INFO!G21=\"\",\"\",INFO!G21)","v":""}]
["** Enter New Players First on UPLOAD page **",null,null,null,{"$f":"COUNTIF(E6:E186,\">0\")","v":0}," = Number who Played",null,null,null,null,"Instructions"]
[null,null,null,"PDGA","Round",null,null,null,"Div",null,"These weekly pages are designed to help you run your league each week."]
["DivCode","First Name","Last Name","or Code","Score","Opt.","Opt.","Opt.","Rank",null,"You may relabel columns F thru I and insert formulas in those columns to"]
[null,null,null,null,null,null,null,null,null,null,"do whatever kind of points, payout or handicap calculations you wish."]
[null,null,null,null,null,null,null,null,null,null,"You may even insert more columns after Column I if you need them."]
[null,null,null,null,null,null,null,null,null,null,"Please do not fiddle with columns A thru E nor insert more rows."]
[]
[null,null,null,null,null,null,null,null,null,null,"New Players: Always enter the names and PDGA or League codes first"]
[null,null,null,null,null,null,null,null,null,null,"on the UPLOAD page. Then, click the red arrow below to get the names"]
[null,null,null,null,null,null,null,null,null,null,"of all league players automatically pasted on this page. You may change"]
[null,null,null,null,null,null,null,null,null,null,"the DivCode for a player if player is switching divisions. Then, simply enter"]
[null,null,null,null,null,null,null,null,null,null,"the raw score for each player this week in column E. Each score will"]
[null,null,null,null,null,null,null,null,null,null,"automatically show up on the UPLOAD page to update each player's scores."]
[null,null,null,null,null,null,null,null,null,null,"You may sort the order of players on this page at any time without messing"]
[null,null,null,null,null,null,null,null,null,null,"up the links to the UPLOAD page. BUT DO NOT INSERT ANY ROWS."]
[]
[]
[]
[]
[]
[null,null,null,null,null,null,null,null,null,null,"Open Office: This arrow button will not work in Open Office. Here are the steps"]
[null,null,null,null,null,null,null,null,null,null,"Please download and use Open Office version of this league template"]

{"sheet":"SUBMIT REPORT","index":13,"n_rows":42,"n_cols":12,"rows_kept":42,"cut":false,"hidden":false,"merged":[[0,0,1,12],[28,2,28,11],[14,5,14,9]]}
["League Report - Submission Checklist"]
[]
[null,null,"INFO tab - Enter all information in yellow boxes known before league starts"]
[null,null,"INFO tab - Update Course or layout info if it changes while league is underway"]
[null,null,"INFO tab - Update Notes regarding bad weather in weeks where it applies"]
[null,null,"INFO tab - Update any additional info at the end of league"]
[null,null,"W 1 thru W 10 tabs - Enter information each week and upload to that weekly page on PDGA site"]
[null,null,"Payout Calc tab - provided as optional help to calculate your payouts if needed"]
[null,null,"SUMMARY - Modify and use as desired to track cumulative player performance during league"]
[null,null,"SUMMARY - Complete Final Division Ranks to prepare for submission to the PDGA"]
[null,null,"SUBMIT REPORT tab - Check weekly player counts to confirm $ total for League Fees to PDGA"]
[null,null,"SUBMIT REPORT tab - Use PayPal to transmit fees or mail Check or Money Order to PDGA"]
[null,null,"Email this report to PDGA Tour Manager: tdreport@pdga.com "]
[]
[null,null,"League Fees",null,null,{"$f":"IF(INFO!C1<>\"\",INFO!C1,\"\")","v":""}]
[null,null,null,"Players","Fees",null,null,null,"Players","Fees"]
[null,null,"Week 1",{"$f":"'W1'!E$3","v":0},{"$f":"0.5*D17","v":0},null,null,"Week 7",{"$f":"'W7'!E$3","v":0},{"$f":"0.5*I17","v":0}]
[null,null,"Week 2",{"$f":"'W2'!E$3","v":0},0,null,null,"Week 8",{"$f":"'W8'!E$3","v":0},{"$f":"0.5*I18","v":0}]
[null,null,"Week 3",{"$f":"'W3'!E$3","v":0},0,null,null,"Week 9",{"$f":"'W9'!E$3","v":0},{"$f":"0.5*I19","v":0}]
[null,null,"Week 4",{"$f":"'W4'!E$3","v":0},0,null,null,"Week 10",{"$f":"'W10'!E$3","v":0},{"$f":"0.5*I20","v":0}]
[null,null,"Week 5",{"$f":"'W5'!E$3","v":0},0]
[null,null,"Week 6",{"$f":"'W6'!E$3","v":0},0]
[null,null,null,null,null,null,null,null,null,{"$f":"SUM(J17:J22)+SUM(E17:E22)","v":0},null,"Total Fee to PDGA"]
[]
[]
["TD Signature"]
["I hereby certify that the information I have provided in this report is accurate to the best of my ability and knowledge."]
[]
[]
[null,null,"League Director"]
[]
["Upon completion of the Event Report please send a copy by email as an attached file to the PDGA at:"]
["tdreport@pdga.com "]
[]
["Payments may be made online or sent by mail. For online payments, go to:"]
["http://www.pdga.com/tdpayment"]
[]
["Send payments by mail to:"]
["PDGA, Wildwood Park, 3841 Dogwood Lane, Appling, GA 30802"]
[]
["Per the terms of PDGA Tour Sanctioning Agreement, League Reports and fees are due within one"]
["month after your league is completed. Questions? Contact the PDGA Office at (706) 261-6342. Thanks!"]

{"sheet":"SUMMARY","index":14,"n_rows":4,"n_cols":38,"rows_kept":4,"cut":false,"hidden":false,"merged":[[2,32,2,34],[2,5,2,7],[2,8,2,10],[2,23,2,25],[0,2,0,16],[0,23,0,25],[2,26,2,28],[2,29,2,31],[2,11,2,13],[2,14,2,16],[2,17,2,19],[2,20,2,22]]}
["League Name:",null,{"$f":"IF(INFO!C1=\"\",\"\",INFO!C1)","v":""},null,null,null,null,null,null,null,null,null,null,null,null,null,null,null,null,null,null,null,"Start Date: ",{"$f":"IF(INFO!S2=\"\",\"\",INFO!S2)","v":""},null,null,null,null,null,null,null,"No. of Weeks:",{"$f":"IF(INFO!S1=\"\",\"\",INFO!S1)","v":""}]
["This page is strictly for the League Dierctor to modify as desired to help track league info. No info on this page is used by the PDGA."]
[null,null,null,null,"Division","Week 1",null,null,"Week 2",null,null,"Week 3",null,null,"Week 4",null,null,"Week 5",null,null,"Week 6",null,null,"Week 7",null,null,"Week 8",null,null,"Week 9",null,null,"Week 10"]
["DivCode","First Name","Last Name","PDGA","Rank","Scr","?","Rnk","Scr","?","Rnk","Scr","?","Rnk","Scr","?","Rnk","Scr","?","Rnk","Scr","?","Rnk","Scr","?","Rnk","Scr","?","Rnk","Scr","?","Rnk","Scr","?","Rnk","Points","Opt.","Opt."]

{"sheet":"Payout Calc","index":15,"n_rows":402,"n_cols":47,"rows_kept":402,"cut":false,"hidden":false,"merged":[[7,0,7,5],[3,5,4,5],[0,0,0,5]]}
["PDGA PAYOUT CALCULATOR",null,null,null,null,null,"Field","# paid",null,null," Number of Places Paid",null,null,null,null,null,null,null,null,null,null,null,null,null,null,null,null,null," Number of Places Paid"]
[null,null,null,null,null,null,null,40,45,50,null,1,2,3,4,5,6,7,8,9,10,11,12,13,14,15,16,17,18,19,20,21,22,23,24,25,26,27,28,29,30,31,32,33]
[null,null," < Enter Field Size",null,null,null,1,1,1,1,1,1,0.625,0.47499999999999998,0.41,0.36,0.33,0.3,0.28000000000000003,0.26800000000000002,0.26,0.25,0.23799999999999999,0.23200000000000001,0.22500000000000001,0.22,0.21,0.2,0.19,0.18,0.16500000000000001,0.152,0.14499999999999999,0.14199999999999999,0.14000000000000001,0.13700000000000001,0.13200000000000001,0.13,0.127,0.125,0.122,0.11799999999999999,0.115,0.112,"1st","P"]
[null,null," < Enter Base Entry Fee",null,null,"Places Paid",2,1,1,1,2,"·········",0.375,0.3,0.26,0.245,0.23,0.21,0.19,0.185,0.18,0.16500000000000001,0.16,0.155,0.15,0.14499999999999999,0.14000000000000001,0.13500000000000001,0.13,0.125,0.11799999999999999,0.115,0.112,0.11,0.107,0.105,0.1,9.8000000000000004E-2,9.5000000000000001E-2,9.2999999999999999E-2,0.09,8.6999999999999994E-2,8.5000000000000006E-2,8.2000000000000003E-2,"2nd","L"]
[null,{"$f":"A3*A4","v":0}," < Enter Added Cash",null,null,null,3,1,1,2,3,"3rd","·········",0.22500000000000001,0.19,0.17,0.155,0.15,0.14499999999999999,0.14000000000000001,0.13,0.127,0.12,0.115,0.11,0.105,0.1,9.7000000000000003E-2,9.5000000000000001E-2,9.1999999999999998E-2,8.8999999999999996E-2,8.6999999999999994E-2,8.5000000000000006E-2,8.4000000000000005E-2,8.2000000000000003E-2,7.8E-2,7.5999999999999998E-2,7.4999999999999997E-2,7.2999999999999995E-2,7.0999999999999994E-2,6.8000000000000005E-2,6.5000000000000002E-2,6.3E-2,5.8000000000000003E-2,"3rd","A"]
[{"$f":"A3*A4+A5","v":0},null," < Net Purse",null,null,{"$f":"IF(A3=\"\",0,VLOOKUP(A3,PaypctP,B7,FALSE))","v":0},4,2,2,2,4,null,"4th","·········",0.14000000000000001,0.125,0.12,0.11,0.115,0.11,0.1,9.8000000000000004E-2,9.5000000000000001E-2,0.09,8.5000000000000006E-2,8.4000000000000005E-2,8.3000000000000004E-2,8.1000000000000003E-2,0.08,7.8E-2,7.5999999999999998E-2,7.4999999999999997E-2,7.1999999999999995E-2,7.0999999999999994E-2,6.6000000000000003E-2,6.5000000000000002E-2,6.4000000000000001E-2,6.3E-2,6.0999999999999999E-2,5.8999999999999997E-2,5.6000000000000001E-2,5.5E-2,5.2999999999999999E-2,5.1999999999999998E-2,"4th","C"]
[null,{"$f":"IF(F7=45%,3,IF(F7=50%,4,2))","v":2},null,"Choose Payout Pct > ",null,0.4,5,2,2,3,5,"P",null,"5th","·········",0.1,9.5000000000000001E-2,9.5000000000000001E-2,0.09,8.5000000000000006E-2,8.1000000000000003E-2,0.08,7.6999999999999999E-2,7.4999999999999997E-2,7.0999999999999994E-2,6.9000000000000006E-2,6.8000000000000005E-2,6.7000000000000004E-2,6.5000000000000002E-2,6.5000000000000002E-2,6.4000000000000001E-2,6.3E-2,6.0999999999999999E-2,0.06,5.7000000000000002E-2,5.6000000000000001E-2,5.5E-2,5.3999999999999999E-2,5.1999999999999998E-2,0.05,4.9000000000000002E-2,4.8000000000000001E-2,4.8000000000000001E-2,4.8000000000000001E-2,"5th","E","< Choose Payout Pct"]
["Based on the steeper PDGA pro table",null,null,null,null,null,6,2,3,3,6,null,"L",null,"6th","·········",7.0000000000000007E-2,7.4999999999999997E-2,7.0000000000000007E-2,6.7000000000000004E-2,6.7000000000000004E-2,6.5000000000000002E-2,6.4000000000000001E-2,6.0999999999999999E-2,0.06,5.8000000000000003E-2,5.7000000000000002E-2,5.6000000000000001E-2,5.5E-2,5.5E-2,5.3999999999999999E-2,5.3999999999999999E-2,5.2999999999999999E-2,5.1999999999999998E-2,5.0999999999999997E-2,4.9000000000000002E-2,4.8000000000000001E-2,4.7E-2,4.5999999999999999E-2,4.4999999999999998E-2,4.4999999999999998E-2,4.4999999999999998E-2,4.4999999999999998E-2,4.4999999999999998E-2,"6th"]
[null,"Prelim","Proposed","Round ","Manual ","Final",7,3,3,4,7,null,null,"A",null,"7th","·········",0.06,0.06,5.5E-2,5.5E-2,5.3999999999999999E-2,5.3999999999999999E-2,5.1999999999999998E-2,5.1999999999999998E-2,0.05,0.05,0.05,0.05,0.05,4.9000000000000002E-2,4.9000000000000002E-2,4.8000000000000001E-2,4.5999999999999999E-2,4.4999999999999998E-2,4.4999999999999998E-2,4.3999999999999997E-2,4.3999999999999997E-2,4.2999999999999997E-2,4.2000000000000003E-2,4.2000000000000003E-2,4.2000000000000003E-2,4.2000000000000003E-2,4.2000000000000003E-2,"7th"]
["Place","Factor","Payout $$","to $5  ","Adjust ","Place",8,3,4,4,8,null,null,null,"C",null,"8th","·········",0.05,4.7E-2,4.7E-2,4.7E-2,4.7E-2,4.5999999999999999E-2,4.5999999999999999E-2,4.4999999999999998E-2,4.4999999999999998E-2,4.4999999999999998E-2,4.4999999999999998E-2,4.4999999999999998E-2,4.4999999999999998E-2,4.4999999999999998E-2,4.4999999999999998E-2,4.2000000000000003E-2,4.2000000000000003E-2,4.1000000000000002E-2,4.1000000000000002E-2,0.04,0.04,0.04,0.04,0.04,3.9E-2,3.9E-2,"8th","O"]
[{"$f":"IF(ROW()-10>$F$6,\"\",ROW()-10)","v":""},{"$f":"IF(A11=\"\",\"\",VLOOKUP(A11,Paypro,$F$6+1))","v":""},{"$f":"IF(B11=\"\",\"\",$B$5*B11+IF(A11<ROUND(0.65*($F$6+1),0),A$5*VLOOKUP(A11,Paypro,ROUND(0.65*($F$6+1),0)),0))","v":""},{"$f":"IF(C11=\"\",\"\",INT((C11+2.5)/5)*5)","v":""},null,null,9,4,4,5,9,null,null,null,null,"E",null,"9th","·········",4.2999999999999997E-2,4.2000000000000003E-2,4.2000000000000003E-2,4.2000000000000003E-2,4.2000000000000003E-2,4.2000000000000003E-2,4.1000000000000002E-2,4.1000000000000002E-2,4.1000000000000002E-2,4.1000000000000002E-2,4.1000000000000002E-2,4.1000000000000002E-2,4.1000000000000002E-2,4.1000000000000002E-2,3.9E-2,3.9E-2,3.7999999999999999E-2,3.7999999999999999E-2,3.6999999999999998E-2,3.6999999999999998E-2,3.6999999999999998E-2,3.6999999999999998E-2,3.6999999999999998E-2,3.5999999999999997E-2,3.5999999999999997E-2,"9th","F"]
["","","","",null,null,10,4,5,5,10,null,null,null,null,null,null,null,"10th","·········",3.7999999999999999E-2,3.7999999999999999E-2,3.7999999999999999E-2,3.7999999999999999E-2,3.7999999999999999E-2,3.6999999999999998E-2,3.6999999999999998E-2,3.6999999999999998E-2,3.6999999999999998E-2,3.6999999999999998E-2,3.6999999999999998E-2,3.6999999999999998E-2,3.6999999999999998E-2,3.5999999999999997E-2,3.5999999999999997E-2,3.5000000000000003E-2,3.5000000000000003E-2,3.4000000000000002E-2,3.4000000000000002E-2,3.4000000000000002E-2,3.4000000000000002E-2,3.4000000000000002E-2,3.4000000000000002E-2,3.4000000000000002E-2,"10th"]
["","","","",null,null,11,4,5,6,11,null,null,null,null,null,null,"O",null,"11th","·········",3.4000000000000002E-2,3.4000000000000002E-2,3.4000000000000002E-2,3.4000000000000002E-2,3.4000000000000002E-2,3.4000000000000002E-2,3.4000000000000002E-2,3.4000000000000002E-2,3.4000000000000002E-2,3.4000000000000002E-2,3.4000000000000002E-2,3.4000000000000002E-2,3.3000000000000002E-2,3.3000000000000002E-2,3.3000000000000002E-2,3.3000000000000002E-2,3.2000000000000001E-2,3.2000000000000001E-2,3.2000000000000001E-2,3.2000000000000001E-2,3.2000000000000001E-2,3.2000000000000001E-2,3.2000000000000001E-2,"11th"]
["","","","",null,null,12,5,6,6,12,null,null,null,null,null,null,null,"F",null,"12th","·········",3.1E-2,3.1E-2,3.1E-2,3.1E-2,3.1E-2,3.1E-2,3.1E-2,3.1E-2,3.1E-2,3.1E-2,3.1E-2,3.1E-2,3.1E-2,3.1E-2,3.1E-2,0.03,0.03,0.03,0.03,0.03,0.03,0.03,"12th","F"]
["","","","",null,null,13,5,6,7,13,null,null,null,null,null,null,null,null,null,null,"13th","·········",2.9000000000000001E-2,2.9000000000000001E-2,2.9000000000000001E-2,2.9000000000000001E-2,2.9000000000000001E-2,2.9000000000000001E-2,2.9000000000000001E-2,2.9000000000000001E-2,2.9000000000000001E-2,2.9000000000000001E-2,2.9000000000000001E-2,2.9000000000000001E-2,2.9000000000000001E-2,2.9000000000000001E-2,2.8000000000000001E-2,2.8000000000000001E-2,2.8000000000000001E-2,2.8000000000000001E-2,2.8000000000000001E-2,2.8000000000000001E-2,2.8000000000000001E-2,"13th","I"]
["","","","",null,null,14,6,6,7,14,null,null,null,null,null,null,null,null,null,"F",null,"14th","·········",2.7E-2,2.7E-2,2.7E-2,2.7E-2,2.7E-2,2.7E-2,2.7E-2,2.7E-2,2.7E-2,2.7E-2,2.7E-2,2.7E-2,2.7E-2,2.7E-2,2.7E-2,2.7E-2,2.7E-2,2.7E-2,2.7E-2,2.7E-2,"14th","N"]
["","","","",null,null,15,6,7,8,15,null,null,null,null,null,null,null,null,null,null,"I",null,"15th","·········",2.5000000000000001E-2,2.5000000000000001E-2,2.5000000000000001E-2,2.5000000000000001E-2,2.5000000000000001E-2,2.5999999999999999E-2,2.5999999999999999E-2,2.5999999999999999E-2,2.5999999999999999E-2,2.5999999999999999E-2,2.5999999999999999E-2,2.5999999999999999E-2,2.5999999999999999E-2,2.5999999999999999E-2,2.5999999999999999E-2,2.5999999999999999E-2,2.5999999999999999E-2,2.5999999999999999E-2,2.5999999999999999E-2,"15th","I"]
["","","","",null,null,16,6,7,8,16,null,null,null,null,null,null,null,null,null,null,null,"N",null,"16th","·········",2.3E-2,2.3E-2,2.3E-2,2.3E-2,2.5000000000000001E-2,2.5000000000000001E-2,2.5000000000000001E-2,2.5000000000000001E-2,2.5000000000000001E-2,2.5000000000000001E-2,2.5000000000000001E-2,2.5000000000000001E-2,2.5000000000000001E-2,2.5000000000000001E-2,2.5000000000000001E-2,2.5000000000000001E-2,2.5000000000000001E-2,2.5000000000000001E-2,"16th","S"]
["","","","",null,null,17,7,8,9,17,null,null,null,null,null,null,null,null,null,null,null,null,"I",null,"17th","·········",2.1999999999999999E-2,2.1999999999999999E-2,2.1999999999999999E-2,2.4E-2,2.4E-2,2.4E-2,2.4E-2,2.4E-2,2.4E-2,2.4E-2,2.4E-2,2.4E-2,2.4E-2,2.4E-2,2.4E-2,2.4E-2,2.4E-2,"17th","H"]
["","","","",null,null,18,7,8,9,18,null,null,null,null,null,null,null,null,null,null,null,null,null,"S",null,"18th","·········",2.1000000000000001E-2,2.1000000000000001E-2,2.3E-2,2.3E-2,2.3E-2,2.3E-2,2.3E-2,2.3E-2,2.3E-2,2.3E-2,2.3E-2,2.3E-2,2.3E-2,2.3E-2,2.3E-2,2.3E-2,"18th"]
["","","","",null,null,19,8,9,10,19,null,null,null,null,null,null,null,null,null,null,null,null,null,null,"H",null,"19th","·········",0.02,2.1999999999999999E-2,2.1999999999999999E-2,2.1999999999999999E-2,2.1999999999999999E-2,2.1999999999999999E-2,2.1999999999999999E-2,2.1999999999999999E-2,2.1999999999999999E-2,2.1999999999999999E-2,2.1999999999999999E-2,2.1999999999999999E-2,2.1999999999999999E-2,2.1999999999999999E-2,2.1999999999999999E-2,"19th"]
["","","","",null,null,20,8,9,10,20,null,null,null,null,null,null,null,null,null,null,null,null,null,null,null,null,null,"20th","·········",2.1000000000000001E-2,2.1000000000000001E-2,2.1000000000000001E-2,2.1000000000000001E-2,2.1000000000000001E-2,2.1000000000000001E-2,2.1000000000000001E-2,2.1000000000000001E-2,2.1000000000000001E-2,2.1000000000000001E-2,2.1000000000000001E-2,2.1000000000000001E-2,2.1000000000000001E-2,2.1000000000000001E-2,"20th"]
["","","","",null,null,21,8,10,11,21,null,null,null,null,null,null,null,null,null,null,null,null,null,null,null,null,null,null,"21st","·········",0.02,0.02,0.02,0.02,0.02,0.02,0.02,0.02,0.02,0.02,0.02,0.02,0.02,"21st"]
["","","","",null,null,22,9,10,11,22,null,null,null,null,null,null,null,null,null,null,null,null,null,null,null,null,null,null,null,"22nd","·········",1.9E-2,1.9E-2,1.9E-2,1.9E-2,1.9E-2,1.9E-2,1.9E-2,1.9E-2,1.9E-2,1.9E-2,1.9E-2,1.9E-2,"22nd"]
["","","","",null,null,23,9,10,12,23,null,null,null,null,null,null,null,null,null,null,null,null,null,null,null,null,null,null,null,null,"23rd","·········",1.7999999999999999E-2,1.7999999999999999E-2,1.7999999999999999E-2,1.7999999999999999E-2,1.7999999999999999E-2,1.7999999999999999E-2,1.7999999999999999E-2,1.7999999999999999E-2,1.7999999999999999E-2,1.7000000000000001E-2,1.7000000000000001E-2,"23rd"]
["","","","",null,null,24,10,11,12,24,null,null,null,null,null,null,null,null,null,null,null,null,null,null,null,null,null,null,null,null,null,"24th","·········",1.7000000000000001E-2,1.7000000000000001E-2,1.7000000000000001E-2,1.7000000000000001E-2,1.7000000000000001E-2,1.7000000000000001E-2,1.7000000000000001E-2,1.7000000000000001E-2,1.7000000000000001E-2,1.7000000000000001E-2,"24th"]
["","","","",null,null,25,10,11,13,25,null,null,null,null,null,null,null,null,null,null,null,null,null,null,null,null,null,null,null,null,null,null,"25th","·········",1.6E-2,1.6E-2,1.6E-2,1.6E-2,1.6E-2,1.6E-2,1.6E-2,1.6E-2,1.6E-2,"25th"]
["","","","",null,null,26,10,12,13,26,null,null,null,null,null,null,null,null,null,null,null,null,null,null,null,null,null,null,null,null,null,null,null,"26th","·········",1.6E-2,1.4999999999999999E-2,1.4999999999999999E-2,1.4999999999999999E-2,1.4999999999999999E-2,1.4999999999999999E-2,1.4999999999999999E-2,1.4999999999999999E-2,"26th"]
["","","","",null,null,27,11,12,14,27,null,null,null,null,null,null,null,null,null,null,null,null,null,null,null,null,null,null,null,null,null,null,null,null,"27th","·········",1.4999999999999999E-2,1.4999999999999999E-2,1.4E-2,1.4E-2,1.4E-2,1.4E-2,1.4E-2,"27th"]
["","","","",null,null,28,11,13,14,28,null,null,null,null,null,null,null,null,null,null,null,null,null,null,null,null,null,null,null,null,null,null,null,null,null,"28th","·········",1.4E-2,1.4E-2,1.4E-2,1.2999999999999999E-2,1.2999999999999999E-2,1.2999999999999999E-2,"28th"]
["","","","",null,null,29,12,13,15,29,null,null,null,null,null,null,null,null,null,null,null,null,null,null,null,null,null,null,null,null,null,null,null,null,null,null,"29th","·········",1.2999999999999999E-2,1.2999999999999999E-2,1.2999999999999999E-2,1.2999999999999999E-2,1.2999999999999999E-2,"29th"]
["","","","",null,null,30,12,14,15,30,null,null,null,null,null,null,null,null,null,null,null,null,null,null,null,null,null,null,null,null,null,null,null,null,null,null,null,"30th","·········",1.2999999999999999E-2,1.2999999999999999E-2,1.2999999999999999E-2,1.2999999999999999E-2,"30th"]
["","","","",null,null,31,12,14,16,31,null,null,null,null,null,null,null,null,null,null,null,null,null,null,null,null,null,null,null,null,null,null,null,null,null,null,null,null,"31st","·········",1.2999999999999999E-2,1.2999999999999999E-2,1.2999999999999999E-2,"31st"]
["","","","",null,null,32,13,15,16,32,null,null,null,null,null,null,null,null,null,null,null,null,null,null,null,null,null,null,null,null,null,null,null,null,null,null,null,null,null,"32nd","·········",1.2E-2,1.2E-2,"32nd"]
["","","","",null,null,33,13,15,17,33,null,null,null,null,null,null,null,null,null,null,null,null,null,null,null,null,null,null,null,null,null,null,null,null,null,null,null,null,null,null,"33rd","·········",1.2E-2,"33rd"]
["","","","",null,null,34,14,15,17,null,null,null,null,null,null,null,null,null,null,null,null,null,null,null,null,null,"Page 1 of 2",null,null,null,null,null,null,null,null,null,null,null,null,null,null,null,null,null,"Page 2 of 2"]
["","","","",null,null,35,14,16,18]
["","","","",null,null,36,14,16,18]
["","","","",null,null,37,15,17,19]
["","","","",null,null,38,15,17,19]
["","","","",null,null,39,16,18,20]
["","","","",null,null,40,16,18,20]
["","","","",null,null,41,16,19,21]
[null,{"$f":"SUM(B11:B43)","v":0},{"$f":"SUM(C11:C43)","v":0},{"$f":"SUM(D11:D43)","v":0},{"$f":"SUM(E11:E43)","v":0},null,42,17,19,21]
[null,null,null,null,null,null,43,17,19,22]
[null,null,null,null,null,null,44,18,20,22]
[null,null,null,null,null,null,45,18,20,23]
[null,null,null,null,null,null,46,18,21,23]
[null,null,null,null,null,null,47,19,21,24]
[null,null,null,null,null,null,48,19,22,24]
[null,null,null,null,null,null,49,20,22,25]
[null,null,null,null,null,null,50,20,23,25]
[null,null,null,null,null,null,51,20,23,26]
[null,null,null,null,null,null,52,21,24,26]
[null,null,null,null,null,null,53,21,24,27]
[null,null,null,null,null,null,54,22,24,27]
[null,null,null,null,null,null,55,22,25,28]
[null,null,null,null,null,null,56,22,25,28]
[null,null,null,null,null,null,57,23,26,29]
[null,null,null,null,null,null,58,23,26,29]
[null,null,null,null,null,null,59,24,27,30]
[null,null,null,null,null,null,60,24,27,30]
[null,null,null,null,null,null,61,24,28,31]
[null,null,null,null,null,null,62,25,28,31]
[null,null,null,null,null,null,63,25,28,32]
[null,null,null,null,null,null,64,26,29,32]
[null,null,null,null,null,null,65,26,29,33]
[null,null,null,null,null,null,66,26,30,33]
[null,null,null,null,null,null,67,27,30,{"$f":"ROUND(0.5*G69,0)","v":34}]
[null,null,null,null,null,null,68,27,31,34]
[null,null,null,null,null,null,69,28,31,35]
[null,null,null,null,null,null,70,28,32,35]
[null,null,null,null,null,null,71,28,32,36]
[null,null,null,null,null,null,72,29,33,36]
[null,null,null,null,null,null,73,29,33,37]
[null,null,null,null,null,null,74,30,{"$f":"ROUND(0.45*G76,0)","v":33},37]
[null,null,null,null,null,null,75,30,34,38]
[null,null,null,null,null,null,76,30,34,38]
[null,null,null,null,null,null,77,31,35,39]
[null,null,null,null,null,null,78,31,35,39]
[null,null,null,null,null,null,79,32,36,40]
[null,null,null,null,null,null,80,32,36,40]
[null,null,null,null,null,null,81,32,36,41]
[null,null,null,null,null,null,82,33,37,41]
[null,null,null,null,null,null,83,33,37,42]
[null,null,null,null,null,null,84,{"$f":"ROUND(G86*0.4,0)","v":34},38,42]
[null,null,null,null,null,null,85,34,38,43]
[null,null,null,null,null,null,86,34,39,43]
[null,null,null,null,null,null,87,35,39,44]
[null,null,null,null,null,null,88,35,40,44]
[null,null,null,null,null,null,89,36,40,45]
[null,null,null,null,null,null,90,36,41,45]
[null,null,null,null,null,null,91,36,41,46]
[null,null,null,null,null,null,92,37,41,46]
[null,null,null,null,null,null,93,37,42,47]
[null,null,null,null,null,null,94,38,42,47]
[null,null,null,null,null,null,95,38,43,48]
[null,null,null,null,null,null,96,38,43,48]
[null,null,null,null,null,null,97,39,44,49]
[null,null,null,null,null,null,98,39,44,49]
[null,null,null,null,null,null,99,40,45,50]
[null,null,null,null,null,null,100,40,45,50]
[null,null,null,null,null,null,101,40,45,51]
[null,null,null,null,null,null,102,41,46,51]
[null,null,null,null,null,null,103,41,46,52]
[null,null,null,null,null,null,104,42,47,52]
[null,null,null,null,null,null,105,42,47,53]
[null,null,null,null,null,null,106,42,48,53]
[null,null,null,null,null,null,107,43,48,54]
[null,null,null,null,null,null,108,43,49,54]
[null,null,null,null,null,null,109,44,49,55]
[null,null,null,null,null,null,110,44,50,55]
[null,null,null,null,null,null,111,44,50,56]
[null,null,null,null,null,null,112,45,50,56]
[null,null,null,null,null,null,113,45,51,57]
[null,null,null,null,null,null,114,46,51,57]
[null,null,null,null,null,null,115,46,52,58]
[null,null,null,null,null,null,116,46,52,58]
[null,null,null,null,null,null,117,47,53,59]
[null,null,null,null,null,null,118,47,53,59]
[null,null,null,null,null,null,119,48,54,60]
[null,null,null,null,null,null,120,48,54,60]
[null,null,null,null,null,null,121,48,54,61]
[null,null,null,null,null,null,122,49,55,61]
[null,null,null,null,null,null,123,49,55,62]
[null,null,null,null,null,null,124,50,56,62]
[null,null,null,null,null,null,125,50,56,63]
[null,null,null,null,null,null,126,50,57,63]
[null,null,null,null,null,null,127,51,57,64]
[null,null,null,null,null,null,128,51,58,64]
[null,null,null,null,null,null,129,52,58,65]
[null,null,null,null,null,null,130,52,59,65]
[null,null,null,null,null,null,131,52,59,{"$f":"ROUND(0.5*G133,0)","v":66}]
[null,null,null,null,null,null,132,53,59,66]
[null,null,null,null,null,null,133,53,60,67]
[null,null,null,null,null,null,134,54,60,67]
[null,null,null,null,null,null,135,54,61,68]
[null,null,null,null,null,null,136,54,61,68]
[null,null,null,null,null,null,137,55,62,69]
[null,null,null,null,null,null,138,55,{"$f":"ROUND(0.45*G140,0)","v":62},69]
[null,null,null,null,null,null,139,56,63,70]
[null,null,null,null,null,null,140,56,63,70]
[null,null,null,null,null,null,141,56,63,71]
[null,null,null,null,null,null,142,57,64,71]
[null,null,null,null,null,null,143,57,64,72]
[null,null,null,null,null,null,144,58,65,72]
[null,null,null,null,null,null,145,58,65,73]
[null,null,null,null,null,null,146,58,66,73]
[null,null,null,null,null,null,147,59,66,74]
[null,null,null,null,null,null,148,{"$f":"ROUND(G150*0.4,0)","v":59},67,74]
[null,null,null,null,null,null,149,60,67,75]
[null,null,null,null,null,null,150,60,68,75]
[null,null,null,null,null,null,151,60,68,76]
[null,null,null,null,null,null,152,61,68,76]
[null,null,null,null,null,null,153,61,69,77]
[null,null,null,null,null,null,154,62,69,77]
[null,null,null,null,null,null,155,62,70,78]
[null,null,null,null,null,null,156,62,70,78]
[null,null,null,null,null,null,157,63,71,79]
[null,null,null,null,null,null,158,63,71,79]
[null,null,null,null,null,null,159,64,72,80]
[null,null,null,null,null,null,160,64,72,80]
[null,null,null,null,null,null,161,64,72,81]
[null,null,null,null,null,null,162,65,73,81]
[null,null,null,null,null,null,163,65,73,82]
[null,null,null,null,null,null,164,66,74,82]
[null,null,null,null,null,null,165,66,74,83]
[null,null,null,null,null,null,166,66,75,83]
[null,null,null,null,null,null,167,67,75,84]
[null,null,null,null,null,null,168,67,76,84]
[null,null,null,null,null,null,169,68,76,85]
[null,null,null,null,null,null,170,68,77,85]
[null,null,null,null,null,null,171,68,77,86]
[null,null,null,null,null,null,172,69,77,86]
[null,null,null,null,null,null,173,69,78,87]
[null,null,null,null,null,null,174,70,78,87]
[null,null,null,null,null,null,175,70,79,88]
[null,null,null,null,null,null,176,70,79,88]
[null,null,null,null,null,null,177,71,80,89]
[null,null,null,null,null,null,178,71,80,89]
[null,null,null,null,null,null,179,72,81,90]
[null,null,null,null,null,null,180,72,81,90]
[null,null,null,null,null,null,181,72,81,91]
[null,null,null,null,null,null,182,73,82,91]
[null,null,null,null,null,null,183,73,82,92]
[null,null,null,null,null,null,184,74,83,92]
[null,null,null,null,null,null,185,74,83,93]
[null,null,null,null,null,null,186,74,84,93]
[null,null,null,null,null,null,187,75,84,94]
[null,null,null,null,null,null,188,75,85,94]
[null,null,null,null,null,null,189,76,85,95]
[null,null,null,null,null,null,190,76,86,95]
[null,null,null,null,null,null,191,76,86,96]
[null,null,null,null,null,null,192,77,86,96]
[null,null,null,null,null,null,193,77,87,97]
[null,null,null,null,null,null,194,78,87,97]
[null,null,null,null,null,null,195,78,88,{"$f":"ROUND(0.5*G197,0)","v":98}]
[null,null,null,null,null,null,196,78,88,98]
[null,null,null,null,null,null,197,79,89,99]
[null,null,null,null,null,null,198,79,89,99]
[null,null,null,null,null,null,199,80,90,100]
[null,null,null,null,null,null,200,80,90,100]
[null,null,null,null,null,null,201,80,90,101]
[null,null,null,null,null,null,202,81,{"$f":"ROUND(0.45*G204,0)","v":91},101]
[null,null,null,null,null,null,203,81,91,102]
[null,null,null,null,null,null,204,82,92,102]
[null,null,null,null,null,null,205,82,92,103]
[null,null,null,null,null,null,206,82,93,103]
[null,null,null,null,null,null,207,83,93,104]
[null,null,null,null,null,null,208,83,94,104]
[null,null,null,null,null,null,209,84,94,105]
[null,null,null,null,null,null,210,84,95,105]
[null,null,null,null,null,null,211,84,95,106]
[null,null,null,null,null,null,212,{"$f":"ROUND(G214*0.4,0)","v":85},95,106]
[null,null,null,null,null,null,213,85,96,107]
[null,null,null,null,null,null,214,86,96,107]
[null,null,null,null,null,null,215,86,97,108]
[null,null,null,null,null,null,216,86,97,108]
[null,null,null,null,null,null,217,87,98,109]
[null,null,null,null,null,null,218,87,98,109]
[null,null,null,null,null,null,219,88,99,110]
[null,null,null,null,null,null,220,88,99,110]
[null,null,null,null,null,null,221,88,99,111]
[null,null,null,null,null,null,222,89,100,111]
[null,null,null,null,null,null,223,89,100,112]
[null,null,null,null,null,null,224,90,101,112]
[null,null,null,null,null,null,225,90,101,113]
[null,null,null,null,null,null,226,90,102,113]
[null,null,null,null,null,null,227,91,102,114]
[null,null,null,null,null,null,228,91,103,114]
[null,null,null,null,null,null,229,92,103,115]
[null,null,null,null,null,null,230,92,104,115]
[null,null,null,null,null,null,231,92,104,116]
[null,null,null,null,null,null,232,93,104,116]
[null,null,null,null,null,null,233,93,105,117]
[null,null,null,null,null,null,234,94,105,117]
[null,null,null,null,null,null,235,94,106,118]
[null,null,null,null,null,null,236,94,106,118]
[null,null,null,null,null,null,237,95,107,119]
[null,null,null,null,null,null,238,95,107,119]
[null,null,null,null,null,null,239,96,108,120]
[null,null,null,null,null,null,240,96,108,120]
[null,null,null,null,null,null,241,96,108,121]
[null,null,null,null,null,null,242,97,109,121]
[null,null,null,null,null,null,243,97,109,122]
[null,null,null,null,null,null,244,98,110,122]
[null,null,null,null,null,null,245,98,110,123]
[null,null,null,null,null,null,246,98,111,123]
[null,null,null,null,null,null,247,99,111,124]
[null,null,null,null,null,null,248,99,112,124]
[null,null,null,null,null,null,249,100,112,125]
[null,null,null,null,null,null,250,100,113,125]
[null,null,null,null,null,null,251,100,113,126]
[null,null,null,null,null,null,252,101,113,126]
[null,null,null,null,null,null,253,101,114,127]
[null,null,null,null,null,null,254,102,114,127]
[null,null,null,null,null,null,255,102,115,128]
[null,null,null,null,null,null,256,102,115,128]
[null,null,null,null,null,null,257,103,116,129]
[null,null,null,null,null,null,258,103,116,129]
[null,null,null,null,null,null,259,104,117,{"$f":"ROUND(0.5*G261,0)","v":130}]
[null,null,null,null,null,null,260,104,117,130]
[null,null,null,null,null,null,261,104,117,131]
[null,null,null,null,null,null,262,105,118,131]
[null,null,null,null,null,null,263,105,118,132]
[null,null,null,null,null,null,264,106,119,132]
[null,null,null,null,null,null,265,106,119,133]
[null,null,null,null,null,null,266,106,{"$f":"ROUND(0.45*G268,0)","v":120},133]
[null,null,null,null,null,null,267,107,120,134]
[null,null,null,null,null,null,268,107,121,134]
[null,null,null,null,null,null,269,108,121,135]
[null,null,null,null,null,null,270,108,122,135]
[null,null,null,null,null,null,271,108,122,136]
[null,null,null,null,null,null,272,109,122,136]
[null,null,null,null,null,null,273,109,123,137]
[null,null,null,null,null,null,274,110,123,137]
[null,null,null,null,null,null,275,110,124,138]
[null,null,null,null,null,null,276,{"$f":"ROUND(G278*0.4,0)","v":110},124,138]
[null,null,null,null,null,null,277,111,125,139]
[null,null,null,null,null,null,278,111,125,139]
[null,null,null,null,null,null,279,112,126,140]
[null,null,null,null,null,null,280,112,126,140]
[null,null,null,null,null,null,281,112,126,141]
[null,null,null,null,null,null,282,113,127,141]
[null,null,null,null,null,null,283,113,127,142]
[null,null,null,null,null,null,284,114,128,142]
[null,null,null,null,null,null,285,114,128,143]
[null,null,null,null,null,null,286,114,129,143]
[null,null,null,null,null,null,287,115,129,144]
[null,null,null,null,null,null,288,115,130,144]
[null,null,null,null,null,null,289,116,130,145]
[null,null,null,null,null,null,290,116,131,145]
[null,null,null,null,null,null,291,116,131,146]
[null,null,null,null,null,null,292,117,131,146]
[null,null,null,null,null,null,293,117,132,147]
[null,null,null,null,null,null,294,118,132,147]
[null,null,null,null,null,null,295,118,133,148]
[null,null,null,null,null,null,296,118,133,148]
[null,null,null,null,null,null,297,119,134,149]
[null,null,null,null,null,null,298,119,134,149]
[null,null,null,null,null,null,299,120,135,150]
[null,null,null,null,null,null,300,120,135,150]
[null,null,null,null,null,null,301,120,135,151]
[null,null,null,null,null,null,302,121,136,151]
[null,null,null,null,null,null,303,121,136,152]
[null,null,null,null,null,null,304,122,137,152]
[null,null,null,null,null,null,305,122,137,153]
[null,null,null,null,null,null,306,122,138,153]
[null,null,null,null,null,null,307,123,138,154]
[null,null,null,null,null,null,308,123,139,154]
[null,null,null,null,null,null,309,124,139,155]
[null,null,null,null,null,null,310,124,140,155]
[null,null,null,null,null,null,311,124,140,156]
[null,null,null,null,null,null,312,125,140,156]
[null,null,null,null,null,null,313,125,141,157]
[null,null,null,null,null,null,314,126,141,157]
[null,null,null,null,null,null,315,126,142,158]
[null,null,null,null,null,null,316,126,142,158]
[null,null,null,null,null,null,317,127,143,159]
[null,null,null,null,null,null,318,127,143,159]
[null,null,null,null,null,null,319,128,144,160]
[null,null,null,null,null,null,320,128,144,160]
[null,null,null,null,null,null,321,128,144,161]
[null,null,null,null,null,null,322,129,145,161]
[null,null,null,null,null,null,323,129,145,{"$f":"ROUND(0.5*G325,0)","v":162}]
[null,null,null,null,null,null,324,130,146,162]
[null,null,null,null,null,null,325,130,146,163]
[null,null,null,null,null,null,326,130,147,163]
[null,null,null,null,null,null,327,131,147,164]
[null,null,null,null,null,null,328,131,148,164]
[null,null,null,null,null,null,329,132,148,165]
[null,null,null,null,null,null,330,132,{"$f":"ROUND(0.45*G332,0)","v":149},165]
[null,null,null,null,null,null,331,132,149,166]
[null,null,null,null,null,null,332,133,149,166]
[null,null,null,null,null,null,333,133,150,167]
[null,null,null,null,null,null,334,134,150,167]
[null,null,null,null,null,null,335,134,151,168]
[null,null,null,null,null,null,336,134,151,168]
[null,null,null,null,null,null,337,135,152,169]
[null,null,null,null,null,null,338,135,152,169]
[null,null,null,null,null,null,339,136,153,170]
[null,null,null,null,null,null,340,{"$f":"ROUND(G342*0.4,0)","v":136},153,170]
[null,null,null,null,null,null,341,136,153,171]
[null,null,null,null,null,null,342,137,154,171]
[null,null,null,null,null,null,343,137,154,172]
[null,null,null,null,null,null,344,138,155,172]
[null,null,null,null,null,null,345,138,155,173]
[null,null,null,null,null,null,346,138,156,173]
[null,null,null,null,null,null,347,139,156,174]
[null,null,null,null,null,null,348,139,157,174]
[null,null,null,null,null,null,349,140,157,175]
[null,null,null,null,null,null,350,140,158,175]
[null,null,null,null,null,null,351,140,158,176]
[null,null,null,null,null,null,352,141,158,176]
[null,null,null,null,null,null,353,141,159,177]
[null,null,null,null,null,null,354,142,159,177]
[null,null,null,null,null,null,355,142,160,178]
[null,null,null,null,null,null,356,142,160,178]
[null,null,null,null,null,null,357,143,161,179]
[null,null,null,null,null,null,358,143,161,179]
[null,null,null,null,null,null,359,144,162,180]
[null,null,null,null,null,null,360,144,162,180]
[null,null,null,null,null,null,361,144,162,181]
[null,null,null,null,null,null,362,145,163,181]
[null,null,null,null,null,null,363,145,163,182]
[null,null,null,null,null,null,364,146,164,182]
[null,null,null,null,null,null,365,146,164,183]
[null,null,null,null,null,null,366,146,165,183]
[null,null,null,null,null,null,367,147,165,184]
[null,null,null,null,null,null,368,147,166,184]
[null,null,null,null,null,null,369,148,166,185]
[null,null,null,null,null,null,370,148,167,185]
[null,null,null,null,null,null,371,148,167,186]
[null,null,null,null,null,null,372,149,167,186]
[null,null,null,null,null,null,373,149,168,187]
[null,null,null,null,null,null,374,150,168,187]
[null,null,null,null,null,null,375,150,169,188]
[null,null,null,null,null,null,376,150,169,188]
[null,null,null,null,null,null,377,151,170,189]
[null,null,null,null,null,null,378,151,170,189]
[null,null,null,null,null,null,379,152,171,190]
[null,null,null,null,null,null,380,152,171,190]
[null,null,null,null,null,null,381,152,171,191]
[null,null,null,null,null,null,382,153,172,191]
[null,null,null,null,null,null,383,153,172,192]
[null,null,null,null,null,null,384,154,173,192]
[null,null,null,null,null,null,385,154,173,193]
[null,null,null,null,null,null,386,154,174,193]
[null,null,null,null,null,null,387,155,174,{"$f":"ROUND(0.5*G389,0)","v":194}]
[null,null,null,null,null,null,388,155,175,194]
[null,null,null,null,null,null,389,156,175,195]
[null,null,null,null,null,null,390,156,176,195]
[null,null,null,null,null,null,391,156,176,196]
[null,null,null,null,null,null,392,157,176,196]
[null,null,null,null,null,null,393,157,177,197]
[null,null,null,null,null,null,394,158,{"$f":"ROUND(0.45*G396,0)","v":177},197]
[null,null,null,null,null,null,395,158,178,198]
[null,null,null,null,null,null,396,158,178,198]
[null,null,null,null,null,null,397,159,179,199]
[null,null,null,null,null,null,398,159,179,199]
[null,null,null,null,null,null,399,160,180,200]
[null,null,null,null,null,null,400,160,180,200]

{"sheet":"Memberships","index":16,"n_rows":0,"n_cols":0,"rows_kept":0,"cut":false,"hidden":false,"merged":[]}

{"sheet":"SupportData","index":17,"n_rows":58,"n_cols":1,"rows_kept":58,"cut":false,"hidden":true,"merged":[]}
["This worksheet contains data used by other worksheets and formulas in this file."]
["Please do not delete this worksheet or modify any data on it."]
[]
["Divcode"]
["MPO"]
["MP40"]
["MP50"]
["MP55"]
["MP60"]
["MP65"]
["MP70"]
["MP75"]
["MP80"]
["FPO"]
["FP40"]
["FP50"]
["FP55"]
["FP60"]
["FP65"]
["FP70"]
["MA1"]
["MA2"]
["MA3"]
["MA4"]
["MA40"]
["MA50"]
["MA55"]
["MA60"]
["MA65"]
["MA70"]
["FA1"]
["FA2"]
["FA3"]
["FA4"]
["FA40"]
["FA50"]
["FA55"]
["FA60"]
["FA65"]
["FA70"]
["MJ18"]
["MJ15"]
["MJ12"]
["MJ10"]
["MJ08"]
["MJ06"]
["FJ18"]
["FJ15"]
["FJ12"]
["FJ10"]
["FJ08"]
["FJ06"]
["RPA"]
["RAH"]
["RAD"]
["RAE"]
["RAF"]
["RAG"]